Workbook

Sheet CD A wn
G3: ENSAYO DE CORTE DIRECTO
U5: galleta A
D6: Proyecto: | H6: Cliente | L6: Muestra | M6: Muestra 6
D7: Sondeo: | E7: Sondeo 3 | H7: Profundidad: | J7: A | L7: Fecha
B8: Galleta 1 | D8: Galleta : | E8: A | R8: INGERCIVIL LTDA
D9: Tipo Muestra:
R10: Ensayos de Consolidacion Unidimensional
E11: Descripcion de la muestra
E13: Diámetro (cm) | G13: 5.98 | K13: Humedad natural | L13: Inicial | M13: Final
B14: DIAMETROS | E14: Altura (cm) | G14: 2.48 | K14: Recipiente
A15: 5 | B15: 5 | C15: =+(A15+B15)/2 -> 5 | E15: Peso del anillo + muestra (g) | K15: Peso recipiente (g)
A16: 5 | B16: 5 | C16: 5 | E16: Peso del anillo (g) | K16: Peso rec + m. humeda (g)
A17: 5 | B17: 5 | C17: 5 | E17: Peso de la muestra (g) | G17: =+G15-G16 -> 0.00 | K17: Peso rec + m. seca (g)
B18: ALTURAS | E18: Peso seco (g) | G18: =+G22*G20 -> 0.00 | K18: Wn (%) | L18: 24.00% | M18: 28.00%
A19: 2.18 | B19: 2.18 | C19: 2.18 | E19: Area (cm2) | G19: =+(PI()*G13^2)/4 -> 28.09
A20: 2.18 | B20: 2.18 | C20: 2.18 | E20: Volumen (cm3) | G20: =+G14*G19 -> 69.65
A21: 2.18 | B21: 2.18 | C21: 2.18 | E21: Peso unitario total (g/cm3) | G21: =+G17/G20 -> 0.00
E22: Peso unitario seco (g/cm3 | G22: =+G21/(1+(L18)) -> 0.00
B23: 52.42 | E23: Altura final (despues del ensayo de corte) | G23: =+G14-(G222/10) -> 2.47
B25: 322.87 | E25: Pesa de carga (kg) | I25: Peso piedra porosa (kg) | L25: =+M25/1000 -> 0.0000
B26: 289.4 | E26: Carga normal (kg) | H26: 15 | I26: Velocidad de corte (mm/min)
E27: Esfuerzo normal inicial (kg/cm2) | H27: =+H26/G19 -> 0.53 | I27: Peso del bloque de carga (kg) | L27: =+M27/1000 -> 0.0000
E28: Carga (Kg) | F28: Lectura del deformímetro horizontal (mm) | G28: Lectura del deformímetro vertical(mm) | H28: Deformación horizontal (%) | I28: Deformación vertical (%) | J28: Area corregida (cm2) | K28: Esfuerzo normal (Kg/cm2) | L28: Esfuerzo cortante (Kg/cm2) | M28: Relación t/s | Q28: Angulo E para area corregida
P30: DFINAL
E31: 0.01 | F31: 0 | G31: 0.0000 | H31: =+((F31/10)/$G$13) -> 0.00% | I31: =((+G31/10)/$G$14) -> 0.00% | J31: =+($G$13^2/2)*(Q31*PI()/180-((F31/10)/$G$13)*SIN(Q31*PI()/180)) -> 28.09 | K31: =+$H$26/J31 -> 0.534 | L31: =+E31/J31 -> 0.0004 | M31: =+L31/K31 -> 0.0007 | P31: =+$G$13-(F31/10) -> 5.98 | Q31: =+DEGREES(ACOS((F31/10)/$G$13)) -> 90.00 | R31: 3132470941.000 | S31: =+K31 -> 0.534
E32: 0.76 | F32: 0.07 | G32: 0.0132 | H32: 0.12% | I32: =((+G32/10)/$G$14) -> 0.05% | J32: 28.04 | K32: 0.535 | L32: =+E32/J32 -> 0.0273 | M32: =+L32/K32 -> 0.0510 | P32: 5.973 | Q32: 89.93 | S32: 0.535
E33: 0.73 | F33: 0.18 | G33: 0.0136 | H33: 0.30% | I33: 0.05% | J33: 27.98 | K33: 0.536 | L33: =+E33/J33 -> 0.0262 | M33: 0.0489 | P33: 5.962 | Q33: 89.83 | S33: 0.536
E34: 0.75 | F34: 0.29 | G34: 0.0136 | H34: 0.48% | I34: 0.05% | J34: 27.91 | K34: 0.537 | L34: 0.0270 | M34: 0.0503 | P34: 5.951 | Q34: 89.72 | R34: 3108712702.000 | S34: 0.537
E35: 2.59 | F35: 0.39 | G35: 0.0155 | H35: 0.65% | I35: 0.06% | J35: 27.85 | K35: 0.539 | L35: 0.0930 | M35: 0.1727 | P35: 5.941 | Q35: 89.63 | S35: 0.539
E36: 3.55 | F36: 0.49 | G36: 0.0186 | H36: 0.82% | I36: 0.08% | J36: 27.79 | K36: 0.540 | L36: 0.1277 | M36: 0.2366 | P36: 5.931 | Q36: 89.53 | S36: 0.540
E37: 4.11 | F37: 0.58 | G37: 0.0223 | H37: 0.97% | I37: 0.09% | J37: 27.74 | K37: 0.541 | L37: 0.1481 | M37: 0.2740 | P37: 5.922 | Q37: 89.44 | S37: 0.541
E38: 4.48 | F38: 0.69 | G38: 0.0259 | H38: 1.15% | I38: 0.10% | J38: 27.67 | K38: 0.542 | L38: 0.1618 | M38: 0.2984 | P38: 5.911 | Q38: 89.34 | S38: 0.542
E39: 4.71 | F39: 0.79 | G39: 0.0294 | H39: 1.32% | I39: 0.12% | J39: 27.61 | K39: 0.543 | L39: 0.1706 | M39: 0.3141 | P39: 5.901 | Q39: 89.24 | S39: 0.543
E40: 4.84 | F40: 0.89 | G40: 0.0326 | H40: 1.49% | I40: 0.13% | J40: 27.55 | K40: 0.544 | L40: 0.1758 | M40: 0.3229 | P40: 5.891 | Q40: 89.15 | S40: 0.544
E41: 5.04 | F41: 0.98 | G41: 0.0358 | H41: 1.64% | I41: 0.14% | J41: 27.50 | K41: 0.545 | L41: 0.1832 | M41: 0.3358 | P41: 5.882 | Q41: 89.06 | S41: 0.545
E42: 5.23 | F42: 1.08 | G42: 0.0387 | H42: 1.81% | I42: 0.16% | J42: 27.44 | K42: 0.547 | L42: 0.1906 | M42: 0.3487 | P42: 5.872 | Q42: 88.97 | S42: 0.547
E43: 5.41 | F43: 1.18 | G43: 0.0412 | H43: 1.97% | I43: 0.17% | J43: 27.38 | K43: 0.548 | L43: 0.1978 | M43: 0.3610 | P43: 5.862 | Q43: 88.87 | S43: 0.548
E44: 5.60 | F44: 1.28 | G44: 0.0437 | H44: 2.14% | I44: 0.18% | J44: 27.32 | K44: 0.549 | L44: 0.2049 | M44: 0.3732 | P44: 5.852 | Q44: 88.77 | S44: 0.549
E45: 5.71 | F45: 1.38 | G45: 0.0457 | H45: 2.31% | I45: 0.18% | J45: 27.26 | K45: 0.550 | L45: 0.2095 | M45: 0.3807 | P45: 5.842 | Q45: 88.68 | S45: 0.550
E46: 5.73 | F46: 1.47 | G46: 0.0487 | H46: 2.46% | I46: 0.20% | J46: 27.21 | K46: 0.551 | L46: 0.2106 | M46: 0.3821 | P46: 5.833 | Q46: 88.59 | S46: 0.551
E47: 5.91 | F47: 1.57 | G47: 0.0511 | H47: 2.63% | I47: 0.21% | J47: 27.15 | K47: 0.553 | L47: 0.2179 | M47: 0.3943 | P47: 5.823 | Q47: 88.50 | S47: 0.553
E48: 5.68 | F48: 1.67 | G48: 0.0520 | H48: 2.79% | I48: 0.21% | J48: 27.09 | K48: 0.554 | L48: 0.2097 | M48: 0.3787 | P48: 5.813 | Q48: 88.40 | S48: 0.554
E49: 6.13 | F49: 1.77 | G49: 0.0540 | H49: 2.96% | I49: 0.22% | J49: 27.03 | K49: 0.555 | L49: =+E49/J49 -> 0.2267 | M49: =+L49/K49 -> 0.4086 | P49: 5.803 | Q49: 88.30 | S49: 0.555
E50: 5.98 | F50: 1.87 | G50: 0.0554 | H50: 3.13% | I50: 0.22% | J50: 26.97 | K50: 0.556 | L50: 0.2216 | M50: 0.3984 | P50: 5.793 | Q50: 88.21 | S50: 0.556
E51: 6.25 | F51: 1.97 | G51: 0.0571 | H51: 3.29% | I51: 0.23% | J51: 26.91 | K51: 0.557 | L51: 0.2323 | M51: 0.4167 | P51: 5.783 | Q51: 88.11 | S51: 0.557
E52: 6.37 | F52: 2.08 | G52: 0.0590 | H52: 3.48% | I52: 0.24% | J52: 26.84 | K52: 0.559 | L52: 0.2374 | M52: 0.4249 | P52: 5.772 | Q52: 88.01 | S52: 0.559
E53: 6.53 | F53: 2.18 | G53: 0.0607 | H53: 3.65% | I53: 0.24% | J53: 26.78 | K53: 0.560 | L53: 0.2437 | M53: 0.4351 | P53: 5.762 | Q53: 87.91 | S53: 0.560
E54: 6.76 | F54: 2.28 | G54: 0.0618 | H54: 3.81% | I54: 0.25% | J54: 26.72 | K54: 0.561 | L54: 0.2530 | M54: 0.4507 | P54: 5.752 | Q54: 87.81 | S54: 0.561
E55: 6.87 | F55: 2.38 | G55: 0.0631 | H55: 3.98% | I55: 0.25% | J55: 26.66 | K55: 0.563 | L55: 0.2578 | M55: 0.4582 | P55: 5.742 | Q55: 87.72 | S55: 0.563
E56: 6.91 | F56: 2.48 | G56: 0.0651 | H56: 4.15% | I56: 0.26% | J56: 26.60 | K56: 0.564 | L56: 0.2599 | M56: 0.4609 | P56: 5.732 | Q56: 87.62 | S56: 0.564
E57: 6.95 | F57: 2.58 | G57: 0.0663 | H57: 4.31% | I57: 0.27% | J57: 26.54 | K57: 0.565 | L57: 0.2620 | M57: 0.4636 | P57: 5.722 | Q57: 87.53 | S57: 0.565
E58: 7.12 | F58: 2.69 | G58: 0.0670 | H58: 4.50% | I58: 0.27% | J58: 26.48 | K58: 0.567 | L58: 0.2688 | M58: 0.4745 | P58: 5.711 | Q58: 87.42 | S58: =+K58 -> 0.567
E59: 7.27 | F59: 2.79 | G59: 0.0683 | H59: 4.67% | I59: 0.28% | J59: 26.42 | K59: 0.568 | L59: 0.2752 | M59: 0.4847 | P59: 5.701 | Q59: 87.33 | S59: 0.568
E60: 7.25 | F60: 2.89 | G60: 0.0698 | H60: 4.83% | I60: 0.28% | J60: 26.36 | K60: 0.569 | L60: 0.2751 | M60: 0.4833 | P60: 5.691 | Q60: 87.23 | S60: 0.569
E61: 7.29 | F61: 2.98 | G61: 0.0706 | H61: 4.98% | I61: 0.28% | J61: 26.30 | K61: 0.570 | L61: 0.2772 | M61: 0.4861 | P61: 5.682 | Q61: 87.14 | S61: 0.570
E62: 7.38 | F62: 3.07 | G62: 0.0713 | H62: 5.13% | I62: 0.29% | J62: 26.25 | K62: 0.571 | L62: 0.2812 | M62: 0.4922 | P62: 5.673 | Q62: 87.06 | S62: 0.571
E63: 7.31 | F63: 3.17 | G63: 0.0720 | H63: 5.30% | I63: 0.29% | J63: 26.19 | K63: 0.573 | L63: =+E63/J63 -> 0.2792 | M63: =+L63/K63 -> 0.4874 | P63: 5.663 | Q63: 86.96 | S63: 0.573
E64: 7.53 | F64: 3.27 | G64: 0.0731 | H64: 5.47% | I64: 0.29% | J64: 26.13 | K64: 0.574 | L64: 0.2880 | M64: 0.5017 | P64: 5.653 | Q64: 86.87 | S64: =+K64 -> 0.574
E65: 7.60 | F65: 3.37 | G65: 0.0731 | H65: 5.64% | I65: 0.29% | J65: 26.07 | K65: 0.575 | L65: 0.2914 | M65: 0.5065 | P65: 5.643 | Q65: 86.77 | S65: 0.575
E66: 7.64 | F66: 3.47 | G66: 0.0740 | H66: =+((F66/10)/$G$13) -> 5.80% | I66: 0.30% | J66: =+($G$13^2/2)*(Q66*PI()/180-((F66/10)/$G$13)*SIN(Q66*PI()/180)) -> 26.01 | K66: =+$H$26/J66 -> 0.577 | L66: =+E66/J66 -> 0.2936 | M66: =+L66/K66 -> 0.5092 | P66: 5.633 | Q66: 86.67 | S66: 0.577
E67: 7.70 | F67: 3.56 | G67: 0.0740 | H67: 5.95% | I67: 0.30% | J67: 25.96 | K67: 0.578 | L67: 0.2966 | M67: 0.5133 | P67: 5.624 | Q67: 86.59 | S67: 0.578
E68: 7.75 | F68: 3.66 | G68: 0.0746 | H68: 6.12% | I68: 0.30% | J68: 25.90 | K68: 0.579 | L68: 0.2992 | M68: 0.5167 | P68: 5.614 | Q68: 86.49 | S68: 0.579
E69: 7.74 | F69: 3.76 | G69: 0.0746 | H69: 6.29% | I69: 0.30% | J69: 25.84 | K69: 0.581 | L69: 0.2995 | M69: 0.5160 | P69: 5.604 | Q69: 86.40 | S69: 0.581
E70: 7.85 | F70: 3.85 | G70: 0.0746 | H70: 6.44% | I70: 0.30% | J70: 25.79 | K70: 0.582 | L70: 0.3045 | M70: 0.5235 | P70: 5.595 | Q70: 86.31 | S70: 0.582
E71: 7.88 | F71: 3.96 | G71: 0.0755 | H71: =+((F71/10)/$G$13) -> 6.62% | I71: =((+G71/10)/$G$14) -> 0.30% | J71: =+($G$13^2/2)*(Q71*PI()/180-((F71/10)/$G$13)*SIN(Q71*PI()/180)) -> 25.72 | K71: =+$H$26/J71 -> 0.583 | L71: =+E71/J71 -> 0.3065 | M71: =+L71/K71 -> 0.5255 | P71: =+$G$13-(F71/10) -> 5.584 | Q71: =+DEGREES(ACOS((F71/10)/$G$13)) -> 86.20 | S71: =+K71 -> 0.583
E72: 7.80 | F72: 4.06 | G72: 0.0769 | H72: 6.79% | I72: 0.31% | J72: 25.66 | K72: 0.585 | L72: 0.3040 | M72: 0.5201 | P72: 5.574 | Q72: 86.11 | S72: 0.585
E73: 7.88 | F73: 4.16 | G73: 0.0769 | H73: 6.96% | I73: 0.31% | J73: 25.60 | K73: 0.586 | L73: 0.3079 | M73: 0.5255 | P73: 5.564 | Q73: 86.01 | S73: 0.586
E74: 7.86 | F74: 4.26 | G74: 0.0769 | H74: 7.12% | I74: 0.31% | J74: 25.54 | K74: 0.587 | L74: 0.3078 | M74: 0.5241 | P74: 5.554 | Q74: 85.91 | S74: 0.587
E75: 7.92 | F75: 4.36 | G75: 0.0769 | H75: 7.29% | I75: 0.31% | J75: 25.48 | K75: 0.589 | L75: 0.3109 | M75: 0.5282 | P75: 5.544 | Q75: 85.82 | S75: 0.589
E76: 8.01 | F76: 4.46 | G76: 0.0769 | H76: 7.46% | I76: 0.31% | J76: 25.42 | K76: 0.590 | L76: 0.3153 | M76: 0.5343 | P76: 5.534 | Q76: 85.72 | S76: 0.590
E77: 8.04 | F77: 4.56 | G77: 0.0769 | H77: 7.63% | I77: 0.31% | J77: 25.36 | K77: 0.591 | L77: 0.3168 | M77: 0.5357 | P77: 5.524 | Q77: 85.63 | S77: 0.591 | AH77: =+$G$13-(F206/10) -> 5.98 | AI77: =+DEGREES(ACOS((F206/10)/$G$13)) -> 90.00 | AK77: =+K206 -> 0.000
E78: 8.05 | F78: 4.67 | G78: 0.0770 | H78: 7.81% | I78: 0.31% | J78: 25.30 | K78: 0.593 | L78: 0.3181 | M78: 0.5364 | P78: 5.513 | Q78: 85.52 | S78: 0.593 | AH78: =+$G$13-(F207/10) -> 5.98 | AI78: =+DEGREES(ACOS((F207/10)/$G$13)) -> 90.00 | AK78: 0.000
E79: 7.96 | F79: 4.77 | G79: 0.0775 | H79: 7.98% | I79: 0.31% | J79: 25.24 | K79: 0.594 | L79: 0.3156 | M79: 0.5309 | P79: 5.503 | Q79: 85.42 | S79: 0.594 | AH79: =+$G$13-(F208/10) -> 5.98 | AI79: =+DEGREES(ACOS((F208/10)/$G$13)) -> 90.00 | AK79: 0.000
E80: 8.05 | F80: 4.87 | G80: 0.0775 | H80: 8.14% | I80: 0.31% | J80: 25.18 | K80: 0.596 | L80: 0.3196 | M80: 0.5364 | P80: 5.493 | Q80: 85.33 | S80: 0.596 | AH80: =+$G$13-(F209/10) -> 5.98 | AK80: 0.000
E81: 8.09 | F81: 4.96 | G81: 0.0775 | H81: 8.29% | I81: 0.31% | J81: 25.12 | K81: 0.597 | L81: 0.3219 | M81: 0.5391 | P81: 5.484 | Q81: 85.24 | S81: 0.597
E82: 7.96 | F82: 5.05 | G82: 0.0775 | H82: 8.44% | I82: 0.31% | J82: 25.07 | K82: 0.598 | L82: 0.3177 | M82: 0.5309 | P82: 5.475 | Q82: 85.16 | S82: 0.598
E83: 7.98 | F83: 5.15 | G83: 0.0775 | H83: 8.61% | I83: 0.31% | J83: 25.01 | K83: 0.600 | L83: 0.3192 | M83: 0.5323 | P83: 5.465 | Q83: 85.06 | S83: 0.600
E84: 8.08 | F84: 5.25 | G84: 0.0782 | H84: 8.78% | I84: 0.32% | J84: 24.95 | K84: 0.601 | L84: 0.3237 | M84: 0.5384 | P84: 5.455 | Q84: 84.96 | S84: 0.601
E85: 8.01 | F85: 5.35 | G85: 0.0786 | H85: 8.95% | I85: 0.32% | J85: 24.89 | K85: 0.603 | L85: 0.3220 | M85: 0.5343 | P85: 5.445 | Q85: 84.87 | S85: 0.603
E86: 8.07 | F86: 5.45 | G86: 0.0786 | H86: 9.11% | I86: 0.32% | J86: 24.83 | K86: 0.604 | L86: 0.3248 | M86: 0.5377 | P86: 5.435 | Q86: 84.77 | S86: 0.604
E87: 8.04 | F87: 5.55 | G87: 0.0786 | H87: 9.28% | I87: 0.32% | J87: 24.77 | K87: 0.606 | L87: 0.3244 | M87: 0.5357 | P87: 5.425 | Q87: 84.67 | S87: 0.606
E88: 8.05 | F88: 5.64 | G88: 0.0786 | H88: 9.43% | I88: 0.32% | J88: 24.72 | K88: 0.607 | L88: 0.3255 | M88: 0.5364 | P88: 5.416 | Q88: 84.59 | S88: 0.607
E89: 8.09 | F89: 5.75 | G89: 0.0786 | H89: 9.62% | I89: 0.32% | J89: 24.65 | K89: 0.608 | L89: 0.3280 | M89: 0.5391 | P89: 5.405 | Q89: 84.48 | S89: 0.608
E90: 8.11 | F90: 5.85 | G90: 0.0786 | H90: 9.78% | I90: 0.32% | J90: 24.59 | K90: 0.610 | L90: 0.3296 | M90: 0.5404 | P90: 5.395 | Q90: 84.39 | S90: 0.610
E91: 8.26 | F91: 5.95 | G91: 0.0786 | H91: 9.95% | I91: 0.32% | J91: 24.53 | K91: 0.611 | L91: 0.3367 | M91: 0.5506 | P91: 5.385 | Q91: 84.29 | S91: 0.611
E92: 8.07 | F92: 6.05 | G92: 0.0793 | H92: 10.12% | I92: 0.32% | J92: 24.47 | K92: 0.613 | L92: 0.3296 | M92: 0.5377 | P92: 5.375 | Q92: 84.19 | S92: 0.613
E93: 8.12 | F93: 6.15 | G93: 0.0793 | H93: 10.28% | I93: 0.32% | J93: 24.41 | K93: 0.614 | L93: 0.3325 | M93: 0.5411 | P93: 5.365 | Q93: 84.10 | S93: 0.614
E94: 8.10 | F94: 6.24 | G94: 0.0793 | H94: 10.43% | I94: 0.32% | J94: 24.36 | K94: 0.616 | L94: 0.3324 | M94: 0.5398 | P94: 5.356 | Q94: 84.01 | S94: 0.616
E95: 8.19 | F95: 6.35 | G95: 0.0793 | H95: 10.62% | I95: 0.32% | J95: 24.30 | K95: 0.617 | L95: 0.3370 | M95: 0.5459 | P95: 5.345 | Q95: 83.90 | S95: 0.617
E96: 8.24 | F96: 6.45 | G96: 0.0804 | H96: 10.79% | I96: 0.32% | J96: 24.24 | K96: 0.619 | L96: 0.3400 | M96: 0.5493 | P96: 5.335 | Q96: 83.81 | S96: 0.619
E97: 8.22 | F97: 6.55 | G97: 0.0804 | H97: 10.95% | I97: 0.32% | J97: 24.18 | K97: 0.620 | L97: 0.3399 | M97: 0.5479 | P97: 5.325 | Q97: 83.71 | S97: 0.620
E98: 8.13 | F98: 6.66 | G98: 0.0804 | H98: 11.14% | I98: 0.32% | J98: 24.11 | K98: 0.622 | L98: 0.3371 | M98: 0.5418 | P98: 5.314 | Q98: 83.61 | S98: 0.622
E99: 8.13 | F99: 6.76 | G99: 0.0804 | H99: 11.30% | I99: 0.32% | J99: 24.05 | K99: 0.624 | L99: 0.3379 | M99: 0.5418 | P99: 5.304 | Q99: 83.51 | S99: 0.624
E100: 8.14 | F100: 6.86 | G100: 0.0804 | H100: 11.47% | I100: 0.32% | J100: 23.99 | K100: 0.625 | L100: 0.3392 | M100: 0.5425 | P100: 5.294 | Q100: 83.41 | S100: 0.625
E101: 8.24 | F101: 6.95 | G101: 0.0804 | H101: 11.62% | I101: 0.32% | J101: 23.94 | K101: 0.627 | L101: 0.3442 | M101: 0.5493 | P101: 5.285 | Q101: 83.33 | S101: 0.627
E102: 8.37 | F102: 7.04 | G102: 0.0804 | H102: 11.77% | I102: 0.32% | J102: 23.89 | K102: 0.628 | L102: 0.3505 | M102: 0.5581 | P102: 5.276 | Q102: 83.24 | S102: 0.628
E103: 8.29 | F103: 7.14 | G103: 0.0804 | H103: 11.94% | I103: 0.32% | J103: 23.83 | K103: 0.630 | L103: 0.3479 | M103: 0.5527 | P103: 5.266 | Q103: 83.14 | S103: 0.630
E104: 8.32 | F104: 7.24 | G104: 0.0804 | H104: 12.11% | I104: 0.32% | J104: 23.77 | K104: 0.631 | L104: 0.3501 | M104: 0.5547 | P104: 5.256 | Q104: 83.05 | S104: 0.631
E105: 8.27 | F105: 7.34 | G105: 0.0804 | H105: 12.27% | I105: 0.32% | J105: 23.71 | K105: 0.633 | L105: 0.3488 | M105: 0.5513 | P105: 5.246 | Q105: 82.95 | S105: 0.633
E106: 8.27 | F106: 7.44 | G106: 0.0804 | H106: 12.44% | I106: 0.32% | J106: 23.65 | K106: 0.634 | L106: 0.3497 | M106: 0.5513 | P106: 5.236 | Q106: 82.85 | S106: 0.634
E107: 8.24 | F107: 7.53 | G107: 0.0804 | H107: 12.59% | I107: 0.32% | J107: 23.60 | K107: 0.636 | L107: 0.3492 | M107: 0.5493 | P107: 5.227 | Q107: 82.77 | S107: 0.636
E108: 8.29 | F108: 7.63 | G108: 0.0804 | H108: 12.76% | I108: 0.32% | J108: 23.54 | K108: 0.637 | L108: 0.3522 | M108: 0.5527 | P108: 5.217 | Q108: 82.67 | S108: 0.637
E109: 8.27 | F109: 7.75 | G109: 0.0804 | H109: 12.96% | I109: 0.32% | J109: 23.46 | K109: 0.639 | L109: 0.3524 | M109: 0.5513 | P109: 5.205 | Q109: 82.55 | S109: 0.639
E110: 8.23 | F110: 7.86 | G110: 0.0804 | H110: 13.14% | I110: 0.32% | J110: 23.40 | K110: 0.641 | L110: 0.3517 | M110: 0.5486 | P110: 5.194 | Q110: 82.45 | S110: 0.641
E111: 8.19 | F111: 7.95 | G111: 0.0804 | H111: 13.29% | I111: 0.32% | J111: 23.35 | K111: 0.643 | L111: 0.3507 | M111: 0.5459 | P111: 5.185 | Q111: 82.36 | S111: 0.643
E112: 8.18 | F112: 8.05 | G112: 0.0804 | H112: 13.46% | I112: 0.32% | J112: 23.29 | K112: 0.644 | L112: 0.3512 | M112: 0.5452 | P112: 5.175 | Q112: 82.26 | S112: 0.644
E113: 8.22 | F113: 8.15 | G113: 0.0804 | H113: 13.63% | I113: 0.32% | J113: 23.23 | K113: 0.646 | L113: 0.3538 | M113: 0.5479 | P113: 5.165 | Q113: 82.17 | S113: 0.646
E114: 8.19 | F114: 8.25 | G114: 0.0804 | H114: 13.80% | I114: 0.32% | J114: 23.17 | K114: 0.647 | L114: 0.3534 | M114: 0.5459 | P114: 5.155 | Q114: 82.07 | S114: 0.647
E115: 8.24 | F115: 8.35 | G115: 0.0804 | H115: 13.96% | I115: 0.32% | J115: 23.11 | K115: 0.649 | L115: 0.3565 | M115: 0.5493 | P115: 5.145 | Q115: 81.97 | S115: 0.649
E116: 8.26 | F116: 8.45 | G116: 0.0804 | H116: 14.13% | I116: 0.32% | J116: 23.05 | K116: 0.651 | L116: 0.3583 | M116: 0.5506 | P116: 5.135 | Q116: 81.88 | S116: 0.651
E117: 8.28 | F117: 8.55 | G117: 0.0804 | H117: 14.30% | I117: 0.32% | J117: 22.99 | K117: 0.652 | L117: 0.3601 | M117: 0.5520 | P117: 5.125 | Q117: 81.78 | S117: 0.652
E118: 8.29 | F118: 8.66 | G118: 0.0804 | H118: 14.48% | I118: 0.32% | J118: 22.93 | K118: 0.654 | L118: 0.3616 | M118: 0.5527 | P118: 5.114 | Q118: 81.67 | S118: 0.654
E119: 8.22 | F119: 8.76 | G119: 0.0804 | H119: 14.65% | I119: 0.32% | J119: 22.87 | K119: 0.656 | L119: 0.3594 | M119: 0.5479 | P119: 5.104 | Q119: 81.58 | S119: 0.656
E120: 8.30 | F120: 8.85 | G120: 0.0804 | H120: 14.80% | I120: 0.32% | J120: 22.81 | K120: 0.658 | L120: 0.3638 | M120: 0.5534 | P120: 5.095 | Q120: 81.49 | S120: 0.658
E121: 8.34 | F121: 8.94 | G121: 0.0804 | H121: 14.95% | I121: 0.32% | J121: 22.76 | K121: 0.659 | L121: 0.3665 | M121: 0.5561 | P121: 5.086 | Q121: 81.40 | S121: 0.659
E122: 8.31 | F122: 9.04 | G122: 0.0804 | H122: 15.12% | I122: 0.32% | J122: 22.70 | K122: 0.661 | L122: 0.3661 | M122: 0.5540 | P122: 5.076 | Q122: 81.31 | S122: 0.661
E123: 8.40 | F123: 9.14 | G123: 0.0804 | H123: 15.28% | I123: 0.32% | J123: 22.64 | K123: 0.662 | L123: 0.3711 | M123: 0.5602 | P123: 5.066 | Q123: 81.21 | S123: 0.662
E124: 8.61 | F124: 9.25 | G124: 0.0804 | H124: 15.47% | I124: 0.32% | J124: 22.58 | K124: 0.664 | L124: 0.3812 | M124: 0.5738 | P124: 5.055 | Q124: 81.10 | S124: 0.664
E125: 8.63 | F125: 9.34 | G125: 0.0804 | H125: 15.62% | I125: 0.32% | J125: 22.52 | K125: 0.666 | L125: 0.3830 | M125: 0.5751 | P125: 5.046 | Q125: 81.01 | S125: 0.666
E126: 8.63 | F126: 9.43 | G126: 0.0804 | H126: 15.77% | I126: 0.32% | J126: 22.47 | K126: 0.668 | L126: 0.3839 | M126: 0.5751 | P126: 5.037 | Q126: 80.93 | S126: 0.668
E127: 8.69 | F127: 9.53 | G127: 0.0804 | H127: 15.94% | I127: 0.32% | J127: 22.41 | K127: 0.669 | L127: 0.3877 | M127: 0.5792 | P127: 5.027 | Q127: 80.83 | S127: 0.669
E128: 8.64 | F128: 9.63 | G128: 0.0804 | H128: 16.10% | I128: 0.32% | J128: 22.35 | K128: 0.671 | L128: 0.3864 | M128: 0.5758 | P128: 5.017 | Q128: 80.73 | S128: 0.671
E129: 8.72 | F129: 9.74 | G129: 0.0804 | H129: 16.29% | I129: 0.32% | J129: 22.29 | K129: 0.673 | L129: 0.3912 | M129: 0.5812 | P129: 5.006 | Q129: 80.63 | S129: 0.673
E130: 8.75 | F130: 9.84 | G130: 0.0804 | H130: 16.45% | I130: 0.32% | J130: 22.23 | K130: 0.675 | L130: 0.3936 | M130: 0.5833 | P130: 4.996 | Q130: 80.53 | S130: 0.675
E131: 8.67 | F131: 9.93 | G131: 0.0804 | H131: 16.61% | I131: 0.32% | J131: 22.18 | K131: 0.676 | L131: 0.3909 | M131: 0.5778 | P131: 4.987 | Q131: 80.44 | S131: 0.676
E132: 8.75 | F132: 10.03 | G132: 0.0804 | H132: 16.77% | I132: 0.32% | J132: 22.12 | K132: 0.678 | L132: 0.3956 | M132: 0.5833 | P132: 4.977 | Q132: 80.34 | S132: 0.678
E133: 8.88 | F133: 10.13 | G133: 0.0804 | H133: 16.94% | I133: 0.32% | J133: 22.06 | K133: 0.680 | L133: 0.4027 | M133: 0.5921 | P133: 4.967 | Q133: 80.25 | S133: 0.680
E134: 8.70 | F134: 10.23 | G134: 0.0804 | H134: 17.11% | I134: 0.32% | J134: 22.00 | K134: 0.682 | L134: 0.3954 | M134: 0.5799 | P134: 4.957 | Q134: 80.15 | S134: 0.682
E135: 8.98 | F135: 10.33 | G135: 0.0804 | H135: =+((F135/10)/$G$13) -> 17.27% | I135: =((+G135/10)/$G$14) -> 0.32% | J135: =+($G$13^2/2)*(Q135*PI()/180-((F135/10)/$G$13)*SIN(Q135*PI()/180)) -> 21.94 | K135: =+$H$26/J135 -> 0.684 | L135: =+E135/J135 -> 0.4095 | M135: =+L135/K135 -> 0.5989 | P135: =+$G$13-(F135/10) -> 4.947 | Q135: =+DEGREES(ACOS((F135/10)/$G$13)) -> 80.05 | S135: =+K135 -> 0.684
E136: 9.10 | F136: 10.43 | G136: 0.0804 | H136: 17.44% | I136: 0.32% | J136: 21.88 | K136: 0.686 | L136: 0.4157 | M136: 0.6064 | P136: 4.937 | Q136: 79.96 | S136: 0.686
E137: 9.13 | F137: 10.53 | G137: 0.0804 | H137: 17.61% | I137: 0.32% | J137: 21.82 | K137: 0.687 | L137: 0.4182 | M137: 0.6084 | P137: 4.927 | Q137: 79.86 | S137: 0.687
E138: 9.17 | F138: 10.63 | G138: 0.0804 | H138: 17.78% | I138: 0.32% | J138: 21.76 | K138: 0.689 | L138: 0.4212 | M138: 0.6111 | P138: 4.917 | Q138: 79.76 | S138: 0.689
E139: 9.34 | F139: 10.73 | G139: 0.0804 | H139: 17.94% | I139: 0.32% | J139: 21.70 | K139: 0.691 | L139: 0.4304 | M139: 0.6227 | P139: 4.907 | Q139: 79.66 | S139: 0.691
E140: 9.42 | F140: 10.82 | G140: 0.0804 | H140: 18.09% | I140: 0.32% | J140: 21.65 | K140: 0.693 | L140: 0.4352 | M140: 0.6281 | P140: 4.898 | Q140: 79.58 | S140: 0.693
E141: 9.43 | F141: 10.92 | G141: 0.0804 | H141: 18.26% | I141: 0.32% | J141: 21.59 | K141: 0.695 | L141: 0.4368 | M141: 0.6288 | P141: 4.888 | Q141: 79.48 | S141: 0.695
E142: 9.53 | F142: 11.02 | G142: 0.0804 | H142: 18.43% | I142: 0.32% | J142: 21.53 | K142: 0.697 | L142: 0.4428 | M142: 0.6356 | P142: 4.878 | Q142: 79.38 | S142: 0.697
E143: 9.63 | F143: 11.12 | G143: 0.0804 | H143: 18.60% | I143: 0.32% | J143: 21.47 | K143: 0.698 | L143: 0.4482 | M143: 0.6417 | P143: 4.868 | Q143: 79.28 | S143: 0.698
E144: 9.73 | F144: 11.22 | G144: 0.0804 | H144: 18.76% | I144: 0.32% | J144: 21.42 | K144: 0.700 | L144: 0.4542 | M144: 0.6485 | P144: 4.858 | Q144: 79.19 | S144: 0.700
E145: 9.64 | F145: 11.31 | G145: 0.0804 | H145: 18.91% | I145: 0.32% | J145: 21.36 | K145: 0.702 | L145: 0.4511 | M145: 0.6424 | P145: 4.849 | Q145: 79.10 | S145: 0.702
E146: 9.63 | F146: 11.41 | G146: 0.0804 | H146: 19.08% | I146: 0.32% | J146: 21.30 | K146: 0.704 | L146: 0.4518 | M146: 0.6417 | P146: 4.839 | Q146: 79.00 | S146: 0.704
E147: 9.68 | F147: 11.5 | G147: 0.0804 | H147: 19.23% | I147: 0.32% | J147: 21.25 | K147: 0.706 | L147: 0.4554 | M147: 0.6451 | P147: 4.83 | Q147: 78.91 | S147: 0.706
E148: 9.75 | F148: 11.61 | G148: 0.0804 | H148: 19.41% | I148: 0.32% | J148: 21.19 | K148: 0.708 | L148: 0.4601 | M148: 0.6499 | P148: 4.819 | Q148: 78.81 | S148: 0.708
E149: 9.93 | F149: 11.71 | G149: 0.0804 | H149: 19.58% | I149: 0.32% | J149: 21.13 | K149: 0.710 | L149: 0.4701 | M149: 0.6621 | P149: 4.809 | Q149: 78.71 | S149: 0.710
E150: 10.04 | F150: 11.81 | G150: 0.0804 | H150: 19.75% | I150: 0.32% | J150: 21.07 | K150: 0.712 | L150: 0.4767 | M150: 0.6696 | P150: 4.799 | Q150: 78.61 | S150: 0.712
E151: 9.87 | F151: 11.91 | G151: 0.0804 | H151: 19.92% | I151: 0.32% | J151: 21.01 | K151: 0.714 | L151: 0.4698 | M151: 0.6581 | P151: 4.789 | Q151: 78.51 | S151: 0.714
E152: 9.84 | F152: 12.01 | G152: 0.0804 | H152: 20.08% | I152: 0.32% | J152: 20.95 | K152: 0.716 | L152: 0.4696 | M152: 0.6560 | P152: 4.779 | Q152: 78.41 | S152: 0.716
E153: 9.45 | F153: 12.11 | G153: 0.0804 | H153: 20.25% | I153: 0.32% | J153: 20.89 | K153: 0.718 | L153: 0.4524 | M153: 0.6302 | P153: 4.769 | Q153: 78.32 | S153: 0.718
E154: 9.29 | F154: 12.22 | G154: 0.0804 | H154: 20.43% | I154: 0.32% | J154: 20.83 | K154: 0.720 | L154: 0.4460 | M154: 0.6193 | P154: 4.758 | Q154: 78.21 | S154: 0.720
E155: 9.49 | F155: 12.32 | G155: 0.0804 | H155: 20.60% | I155: 0.32% | J155: 20.77 | K155: 0.722 | L155: 0.4571 | M155: 0.6329 | P155: 4.748 | Q155: 78.11 | S155: 0.722
E156: 9.49 | F156: 12.42 | G156: 0.0804 | H156: 20.77% | I156: 0.32% | J156: 20.71 | K156: 0.724 | L156: 0.4583 | M156: 0.6329 | P156: 4.738 | Q156: 78.01 | S156: 0.724
E157: 9.36 | F157: 12.53 | G157: 0.0804 | H157: 20.95% | I157: 0.32% | J157: 20.65 | K157: 0.726 | L157: 0.4534 | M157: 0.6241 | P157: 4.727 | Q157: 77.91 | S157: 0.726
E158: 9.27 | F158: 12.63 | G158: 0.0804 | H158: 21.12% | I158: 0.32% | J158: 20.59 | K158: 0.729 | L158: 0.4502 | M158: 0.6179 | P158: 4.717 | Q158: 77.81 | S158: 0.729
E159: 9.24 | F159: 12.73 | G159: 0.0804 | H159: 21.29% | I159: 0.32% | J159: 20.53 | K159: 0.731 | L159: 0.4500 | M159: 0.6159 | P159: 4.707 | Q159: 77.71 | S159: 0.731
E160: 9.32 | F160: 12.83 | G160: 0.0804 | H160: 21.45% | I160: 0.32% | J160: 20.47 | K160: 0.733 | L160: 0.4552 | M160: 0.6213 | P160: 4.697 | Q160: 77.61 | S160: 0.733
E161: 9.27 | F161: 12.92 | G161: 0.0804 | H161: 21.61% | I161: 0.32% | J161: 20.42 | K161: 0.735 | L161: 0.4539 | M161: 0.6179 | P161: 4.688 | Q161: 77.52 | S161: 0.735
E162: 9.33 | F162: 13.03 | G162: 0.0804 | H162: 21.79% | I162: 0.32% | J162: 20.36 | K162: 0.737 | L162: 0.4584 | M162: 0.6220 | P162: 4.677 | Q162: 77.41 | S162: 0.737
E163: 9.23 | F163: 13.12 | G163: 0.0804 | H163: 21.94% | I163: 0.32% | J163: 20.30 | K163: 0.739 | L163: 0.4545 | M163: 0.6152 | P163: 4.668 | Q163: 77.33 | S163: 0.739
E164: 9.31 | F164: 13.22 | G164: 0.0804 | H164: 22.11% | I164: 0.32% | J164: 20.25 | K164: 0.741 | L164: 0.4599 | M164: 0.6207 | P164: 4.658 | Q164: 77.23 | S164: 0.741
E165: 9.31 | F165: 13.31 | G165: 0.0804 | H165: 22.26% | I165: 0.32% | J165: 20.19 | K165: 0.743 | L165: 0.4611 | M165: 0.6207 | P165: 4.649 | Q165: 77.14 | S165: 0.743
E166: 9.36 | F166: 13.41 | G166: 0.0804 | H166: 22.42% | I166: 0.32% | J166: 20.13 | K166: 0.745 | L166: 0.4649 | M166: 0.6241 | P166: 4.639 | Q166: 77.04 | S166: 0.745
E167: 9.35 | F167: 13.51 | G167: 0.0804 | H167: 22.59% | I167: 0.32% | J167: 20.08 | K167: 0.747 | L167: 0.4658 | M167: 0.6234 | P167: 4.629 | Q167: 76.94 | S167: 0.747
E168: 9.35 | F168: 13.61 | G168: 0.0804 | H168: 22.76% | I168: 0.32% | J168: 20.02 | K168: 0.749 | L168: 0.4671 | M168: 0.6234 | P168: 4.619 | Q168: 76.84 | S168: 0.749
E169: 9.18 | F169: 13.72 | G169: 0.0804 | H169: 22.94% | I169: 0.32% | J169: 19.95 | K169: 0.752 | L169: 0.4599 | M169: 0.6118 | P169: 4.608 | Q169: 76.74 | S169: 0.752
E170: 9.27 | F170: 13.81 | G170: 0.0804 | H170: 23.09% | I170: 0.32% | J170: 19.90 | K170: 0.754 | L170: 0.4657 | M170: 0.6179 | P170: 4.599 | Q170: 76.65 | S170: 0.754
E171: 9.04 | F171: 13.92 | G171: 0.0804 | H171: 23.28% | I171: 0.32% | J171: 19.84 | K171: 0.756 | L171: 0.4559 | M171: 0.6030 | P171: 4.588 | Q171: 76.54 | S171: 0.756
E172: 9.06 | F172: 14.02 | G172: 0.0804 | H172: 23.44% | I172: 0.32% | J172: 19.78 | K172: 0.758 | L172: 0.4578 | M172: 0.6037 | P172: 4.578 | Q172: 76.44 | S172: 0.758
E173: 9.13 | F173: 14.12 | G173: 0.0804 | H173: 23.61% | I173: 0.32% | J173: 19.72 | K173: 0.761 | L173: 0.4628 | M173: 0.6084 | P173: 4.568 | Q173: 76.34 | S173: 0.761
E174: 9.11 | F174: 14.22 | G174: 0.0804 | H174: 23.78% | I174: 0.32% | J174: 19.66 | K174: 0.763 | L174: 0.4631 | M174: 0.6071 | P174: 4.558 | Q174: 76.24 | S174: 0.763
E175: 23.63 | F175: 14.24 | G175: 0.1203 | H175: 23.81% | I175: 0.49% | J175: 19.65 | K175: 0.763 | L175: 1.2023 | M175: 1.5751 | P175: 4.556 | Q175: 76.22 | S175: 0.763
E176: 23.65 | F176: 14.34 | G176: 0.1192 | H176: 23.98% | I176: 0.48% | J176: 19.59 | K176: 0.766 | L176: 1.2069 | M176: 1.5765 | P176: 4.546 | Q176: 76.13 | S176: 0.766
E177: 23.78 | F177: 14.44 | G177: 0.1191 | H177: 24.15% | I177: 0.48% | J177: 19.54 | K177: 0.768 | L177: 1.2172 | M177: 1.5853 | P177: 4.536 | Q177: 76.03 | S177: 0.768
E178: 23.80 | F178: 14.54 | G178: 0.1182 | H178: 24.31% | I178: 0.48% | J178: 19.48 | K178: 0.770 | L178: 1.2219 | M178: 1.5867 | P178: 4.526 | Q178: 75.93 | S178: 0.770
E179: 23.85 | F179: 14.64 | G179: 0.1180 | H179: 24.48% | I179: 0.48% | J179: 19.42 | K179: 0.772 | L179: 1.2282 | M179: 1.5901 | P179: 4.516 | Q179: 75.83 | S179: 0.772
E180: 23.96 | F180: 14.74 | G180: 0.1180 | H180: 24.65% | I180: 0.48% | J180: 19.36 | K180: 0.775 | L180: 1.2377 | M180: 1.5976 | P180: 4.506 | Q180: 75.73 | S180: 0.775
E181: 23.96 | F181: 14.84 | G181: 0.1163 | H181: 24.82% | I181: 0.47% | J181: 19.30 | K181: 0.777 | L181: 1.2414 | M181: 1.5976 | P181: 4.496 | Q181: 75.63 | S181: 0.777
E182: 24.11 | F182: 14.93 | G182: 0.1163 | H182: 24.97% | I182: 0.47% | J182: 19.25 | K182: 0.779 | L182: 1.2522 | M182: 1.6071 | P182: 4.487 | Q182: 75.54 | S182: 0.779
E183: 24.14 | F183: 15.03 | G183: 0.1163 | H183: 25.13% | I183: 0.47% | J183: 19.19 | K183: 0.782 | L183: 1.2575 | M183: 1.6091 | P183: 4.477 | Q183: 75.44 | S183: 0.782
E184: 24.25 | F184: 15.13 | G184: 0.1163 | H184: 25.30% | I184: 0.47% | J184: 19.14 | K184: 0.784 | L184: 1.2672 | M184: 1.6166 | P184: 4.467 | Q184: 75.34 | S184: 0.784
E185: 24.30 | F185: 15.23 | G185: 0.1163 | H185: 25.47% | I185: 0.47% | J185: 19.08 | K185: 0.786 | L185: 1.2737 | M185: 1.6200 | P185: 4.457 | Q185: 75.25 | S185: 0.786
E186: 24.39 | F186: 15.32 | G186: 0.1163 | H186: 25.62% | I186: 0.47% | J186: 19.03 | K186: 0.788 | L186: 1.2820 | M186: 1.6261 | P186: 4.448 | Q186: 75.16 | S186: 0.788
E187: 24.53 | F187: 15.42 | G187: 0.1163 | H187: 25.79% | I187: 0.47% | J187: 18.97 | K187: 0.791 | L187: 1.2934 | M187: 1.6356 | P187: 4.438 | Q187: 75.06 | S187: 0.791
E188: 24.67 | F188: 15.52 | G188: 0.1163 | H188: 25.95% | I188: 0.47% | J188: 18.91 | K188: 0.793 | L188: 1.3044 | M188: 1.6445 | P188: 4.428 | Q188: 74.96 | S188: 0.793
E189: 24.67 | F189: 15.62 | G189: 0.1163 | H189: 26.12% | I189: 0.47% | J189: 18.85 | K189: 0.796 | L189: 1.3084 | M189: 1.6445 | P189: 4.418 | Q189: 74.86 | S189: 0.796
E190: 24.76 | F190: 15.72 | G190: 0.1163 | H190: 26.29% | I190: 0.47% | J190: 18.80 | K190: 0.798 | L190: 1.3173 | M190: 1.6506 | P190: 4.408 | Q190: 74.76 | S190: 0.798
E191: 24.75 | F191: 15.83 | G191: 0.1163 | H191: 26.47% | I191: 0.47% | J191: 18.73 | K191: 0.801 | L191: 1.3212 | M191: 1.6499 | P191: 4.397 | Q191: 74.65 | S191: 0.801
E192: 24.89 | F192: 15.92 | G192: 0.1163 | H192: 26.62% | I192: 0.47% | J192: 18.68 | K192: 0.803 | L192: 1.3325 | M192: 1.6594 | P192: 4.388 | Q192: 74.56 | S192: 0.803
E193: 25.02 | F193: 16.03 | G193: 0.1163 | H193: 26.81% | I193: 0.47% | J193: 18.62 | K193: 0.806 | L193: 1.3442 | M193: 1.6683 | P193: 4.377 | Q193: 74.45 | S193: 0.806
E194: 25.22 | F194: 16.12 | G194: 0.1163 | H194: 26.96% | I194: 0.47% | J194: 18.56 | K194: 0.808 | L194: 1.3584 | M194: 1.6812 | P194: 4.368 | Q194: 74.36 | S194: 0.808
E195: 25.29 | F195: 16.23 | G195: 0.1142 | H195: 27.14% | I195: 0.46% | J195: 18.50 | K195: 0.811 | L195: 1.3669 | M195: 1.6859 | P195: 4.357 | Q195: 74.25 | S195: 0.811
E196: 25.43 | F196: 16.33 | G196: 0.1142 | H196: 27.31% | I196: 0.46% | J196: 18.44 | K196: 0.813 | L196: 1.3789 | M196: 1.6954 | P196: 4.347 | Q196: 74.15 | S196: 0.813
E197: 25.51 | F197: 16.43 | G197: 0.1142 | H197: 27.47% | I197: 0.46% | J197: 18.39 | K197: 0.816 | L197: 1.3876 | M197: 1.7009 | P197: 4.337 | Q197: 74.05 | S197: 0.816
E198: 25.65 | F198: 16.53 | G198: 0.1142 | H198: 27.64% | I198: 0.46% | J198: 18.33 | K198: 0.818 | L198: 1.3992 | M198: 1.7097 | P198: 4.327 | Q198: 73.95 | S198: 0.818
E199: 25.72 | F199: 16.63 | G199: 0.1142 | H199: =+((F199/10)/$G$13) -> 27.81% | I199: =((+G199/10)/$G$14) -> 0.46% | J199: =+($G$13^2/2)*(Q199*PI()/180-((F199/10)/$G$13)*SIN(Q199*PI()/180)) -> 18.27 | K199: =+$H$26/J199 -> 0.821 | L199: =+E199/J199 -> 1.4075 | M199: =+L199/K199 -> 1.7145 | P199: =+$G$13-(F199/10) -> 4.317 | Q199: =+DEGREES(ACOS((F199/10)/$G$13)) -> 73.85 | S199: =+K199 -> 0.821
E200: 25.70 | F200: 16.73 | G200: 0.1142 | H200: 27.98% | I200: 0.46% | J200: 18.21 | K200: 0.824 | L200: 1.4109 | M200: 1.7131 | P200: 4.307 | Q200: 73.75 | S200: 0.824
E201: 25.80 | F201: 16.82 | G201: 0.1142 | H201: 28.13% | I201: 0.46% | J201: 18.16 | K201: 0.826 | L201: 1.4205 | M201: 1.7199 | P201: 4.298 | Q201: 73.66 | S201: 0.826
E202: 25.87 | F202: 16.92 | G202: 0.1129 | H202: 28.29% | I202: 0.46% | J202: 18.10 | K202: 0.829 | L202: 1.4289 | M202: 1.7247 | P202: 4.288 | Q202: 73.56 | S202: 0.829
E203: 25.87 | F203: 17.02 | G203: 0.1129 | H203: 28.46% | I203: 0.46% | J203: 18.05 | K203: 0.831 | L203: 1.4335 | M203: 1.7247 | P203: 4.278 | Q203: 73.46 | S203: 0.831
E204: 25.95 | F204: 17.11 | G204: 0.1129 | H204: 28.61% | I204: 0.46% | J204: 18.00 | K204: 0.834 | L204: 1.4421 | M204: 1.7301 | P204: 4.269 | Q204: 73.37 | S204: 0.834
J210: Revisado y Aprobado:
E211: Laboratorista | K211: I.C. GERMAN DARÍO TAPIA MUÑOZ
... 10 more rows

Sheet CD B wn
G3: ENSAYO DE CORTE DIRECTO
U5: galleta A
D6: Proyecto: | E6: =+'CD A wn'!E6 -> 0.00 | H6: Cliente | I6: =+'CD A wn'!I6 -> 0 | L6: Muestra | M6: =+'CD A wn'!M6 -> Muestra 6
D7: Sondeo: | E7: =+'CD A wn'!E7 -> Sondeo 3 | H7: Profundidad: | I7: =+'CD A wn'!I7 -> 0.00 | J7: A | K7: =+'CD A wn'!K7 -> 0.00 | L7: Fecha | M7: =+'CD A wn'!M7:N7 -> 00:00:00
B8: Galleta 1 | D8: Galleta : | E8: B
D9: Tipo Muestra: | E9: =+'CD A wn'!E9 -> 0.00
E11: Descripcion de la muestra
E13: Diámetro (cm) | G13: 5.98 | K13: Humedad natural | L13: Inicial | M13: Final
B14: DIAMETROS | E14: Altura (cm) | G14: 2.48 | K14: Recipiente
A15: 5 | B15: 5 | C15: =+(A15+B15)/2 -> 5 | E15: Peso del anillo + muestra (g) | K15: Peso recipiente (g)
A16: 5 | B16: 5 | C16: 5 | E16: Peso del anillo (g) | K16: Peso rec + m. humeda (g)
A17: 5 | B17: 5 | C17: 5 | E17: Peso de la muestra (g) | G17: =+G15-G16 -> 0.00 | K17: Peso rec + m. seca (g)
B18: ALTURAS | E18: Peso seco (g) | G18: =+G22*G20 -> 0.00 | K18: Wn (%) | L18: 22.00% | M18: 26.00%
A19: 2.18 | B19: 2.18 | C19: 2.18 | E19: Area (cm2) | G19: =+(PI()*G13^2)/4 -> 28.09
A20: 2.18 | B20: 2.18 | C20: 2.18 | E20: Volumen (cm3) | G20: =+G14*G19 -> 69.65
A21: 2.18 | B21: 2.18 | C21: 2.18 | E21: Peso unitario total (g/cm3) | G21: =+G17/G20 -> 0.00
E22: Peso unitario seco (g/cm3 | G22: =+G21/(1+(L18)) -> 0.00
B23: 52.42 | E23: Altura final (despues del ensayo de corte) | G23: =+G14-(G150/10) -> 2.45
B25: 322.87 | E25: Pesa de carga (kg) | I25: Peso piedra porosa (kg) | L25: =+M25/1000 -> 0.0000
B26: 289.4 | E26: Carga normal (kg) | H26: 30 | I26: Velocidad de corte (mm/min)
E27: Esfuerzo normal inicial (kg/cm2) | H27: =+H26/G19 -> 1.07 | I27: Peso del bloque de carga (kg) | L27: =+M27/1000 -> 0.0000
E28: Carga (Kg) | F28: Lectura del deformímetro horizontal (mm) | G28: Lectura del deformímetro vertical(mm) | H28: Deformación horizontal (%) | I28: Deformación vertical (%) | J28: Area corregida (cm2) | K28: Esfuerzo normal (Kg/cm2) | L28: Esfuerzo cortante (Kg/cm2) | M28: Relación t/s | Q28: Angulo E para area corregida
P30: DFINAL
E31: 0.051 | F31: 0.02 | G31: 0.2829 | H31: =+((F31/10)/$G$13) -> 0.03% | I31: =((+G31/10)/$G$14) -> 1.14% | J31: =+($G$13^2/2)*(Q31*PI()/180-((F31/10)/$G$13)*SIN(Q31*PI()/180)) -> 28.07 | K31: =+$H$26/J31 -> 1.069 | L31: =+E31/J31 -> 0.0018 | M31: =+L31/K31 -> 0.0017 | P31: =+$G$13-(F31/10) -> 5.978 | Q31: =+DEGREES(ACOS((F31/10)/$G$13)) -> 89.98 | R31: 3132470941.000 | S31: =+K31 -> 1.069
E32: 0.184 | F32: 0.07 | G32: 0.2829 | H32: 0.12% | I32: =((+G32/10)/$G$14) -> 1.14% | J32: 28.04 | K32: 1.070 | L32: =+E32/J32 -> 0.0065 | M32: =+L32/K32 -> 0.0061 | P32: 5.973 | Q32: 89.93 | S32: 1.070
E33: 0.163 | F33: 0.16 | G33: 0.2829 | H33: 0.27% | I33: 1.14% | J33: 27.99 | K33: 1.072 | L33: =+E33/J33 -> 0.0058 | M33: 0.0054 | P33: 5.964 | Q33: 89.85 | S33: 1.072
E34: 3.702 | F34: 0.25 | G34: 0.2829 | H34: 0.42% | I34: 1.14% | J34: 27.94 | K34: 1.074 | L34: 0.1325 | M34: 0.1234 | P34: 5.955 | Q34: 89.76 | R34: 3108712702.000 | S34: 1.074
E35: 5.506 | F35: 0.35 | G35: 0.2853 | H35: 0.59% | I35: 1.15% | J35: 27.88 | K35: 1.076 | L35: 0.1975 | M35: 0.1835 | P35: 5.945 | Q35: 89.66 | S35: 1.076
E36: 6.863 | F36: 0.45 | G36: 0.2865 | H36: 0.75% | I36: 1.16% | J36: 27.82 | K36: 1.078 | L36: 0.2467 | M36: 0.2288 | P36: 5.935 | Q36: 89.57 | S36: 1.078
E37: 8.137 | F37: 0.54 | G37: 0.2882 | H37: 0.90% | I37: 1.16% | J37: 27.76 | K37: 1.081 | L37: 0.2931 | M37: 0.2712 | P37: 5.926 | Q37: 89.48 | S37: 1.081
E38: 9.035 | F38: 0.64 | G38: 0.2890 | H38: =+((F38/10)/$G$13) -> 1.07% | I38: =((+G38/10)/$G$14) -> 1.17% | J38: =+($G$13^2/2)*(Q38*PI()/180-((F38/10)/$G$13)*SIN(Q38*PI()/180)) -> 27.70 | K38: =+$H$26/J38 -> 1.083 | L38: =+E38/J38 -> 0.3261 | M38: =+L38/K38 -> 0.3012 | P38: =+$G$13-(F38/10) -> 5.916 | Q38: =+DEGREES(ACOS((F38/10)/$G$13)) -> 89.39 | S38: =+K38 -> 1.083
E39: 9.748 | F39: 0.74 | G39: 0.2900 | H39: 1.24% | I39: 1.17% | J39: 27.64 | K39: 1.085 | L39: 0.3526 | M39: 0.3249 | P39: 5.906 | Q39: 89.29 | S39: 1.085
E40: 10.309 | F40: 0.84 | G40: 0.2909 | H40: 1.40% | I40: 1.17% | J40: 27.58 | K40: 1.088 | L40: 0.3737 | M40: 0.3436 | P40: 5.896 | Q40: 89.20 | S40: 1.088
E41: 10.666 | F41: 0.93 | G41: 0.2931 | H41: 1.56% | I41: 1.18% | J41: 27.53 | K41: 1.090 | L41: 0.3874 | M41: 0.3555 | P41: 5.887 | Q41: 89.11 | S41: 1.090
E42: 11.217 | F42: 1.03 | G42: 0.2942 | H42: 1.72% | I42: 1.19% | J42: 27.47 | K42: 1.092 | L42: 0.4083 | M42: 0.3739 | P42: 5.877 | Q42: 89.01 | S42: 1.092
E43: 11.808 | F43: 1.13 | G43: 0.2951 | H43: 1.89% | I43: 1.19% | J43: 27.41 | K43: 1.094 | L43: 0.4308 | M43: 0.3936 | P43: 5.867 | Q43: 88.92 | S43: 1.094
E44: 12.063 | F44: 1.23 | G44: 0.2970 | H44: 2.06% | I44: 1.20% | J44: 27.35 | K44: 1.097 | L44: 0.4411 | M44: 0.4021 | P44: 5.857 | Q44: 88.82 | S44: 1.097
E45: 12.502 | F45: 1.33 | G45: 0.2979 | H45: 2.22% | I45: 1.20% | J45: 27.29 | K45: 1.099 | L45: 0.4581 | M45: 0.4167 | P45: 5.847 | Q45: 88.73 | S45: 1.099
E46: 12.441 | F46: 1.43 | G46: 0.2988 | H46: 2.39% | I46: 1.20% | J46: 27.23 | K46: 1.102 | L46: 0.4569 | M46: 0.4147 | P46: 5.837 | Q46: 88.63 | S46: 1.102
E47: 12.767 | F47: 1.52 | G47: 0.2998 | H47: 2.54% | I47: 1.21% | J47: 27.18 | K47: 1.104 | L47: 0.4698 | M47: 0.4256 | P47: 5.828 | Q47: 88.54 | S47: 1.104
E48: 13.297 | F48: 1.62 | G48: 0.3009 | H48: 2.71% | I48: 1.21% | J48: 27.12 | K48: 1.106 | L48: 0.4904 | M48: 0.4432 | P48: 5.818 | Q48: 88.45 | S48: 1.106
E49: 13.603 | F49: 1.71 | G49: 0.3009 | H49: 2.86% | I49: 1.21% | J49: 27.06 | K49: 1.108 | L49: 0.5026 | M49: 0.4534 | P49: 5.809 | Q49: 88.36 | S49: 1.108
E50: 14.082 | F50: 1.81 | G50: 0.3009 | H50: 3.03% | I50: 1.21% | J50: 27.00 | K50: 1.111 | L50: 0.5215 | M50: 0.4694 | P50: 5.799 | Q50: 88.27 | S50: 1.111
E51: 14.398 | F51: 1.91 | G51: 0.3020 | H51: 3.19% | I51: 1.22% | J51: 26.94 | K51: 1.113 | L51: 0.5344 | M51: 0.4799 | P51: 5.789 | Q51: 88.17 | S51: 1.113
E52: 14.939 | F52: 2.02 | G52: 0.3031 | H52: 3.38% | I52: 1.22% | J52: 26.88 | K52: 1.116 | L52: 0.5558 | M52: 0.4980 | P52: 5.778 | Q52: 88.06 | S52: 1.116
E53: 15.367 | F53: 2.12 | G53: 0.3033 | H53: 3.55% | I53: 1.22% | J53: 26.82 | K53: 1.119 | L53: 0.5730 | M53: 0.5122 | P53: 5.768 | Q53: 87.97 | S53: 1.119
E54: 15.836 | F54: 2.22 | G54: 0.3046 | H54: 3.71% | I54: 1.23% | J54: 26.76 | K54: 1.121 | L54: 0.5918 | M54: 0.5279 | P54: 5.758 | Q54: 87.87 | S54: 1.121
E55: 16.254 | F55: 2.32 | G55: 0.3053 | H55: 3.88% | I55: 1.23% | J55: 26.70 | K55: 1.124 | L55: 0.6088 | M55: 0.5418 | P55: 5.748 | Q55: 87.78 | S55: 1.124
E56: 16.479 | F56: 2.43 | G56: 0.3062 | H56: 4.06% | I56: 1.23% | J56: 26.63 | K56: 1.126 | L56: 0.6187 | M56: 0.5493 | P56: 5.737 | Q56: 87.67 | S56: 1.126
E57: 16.805 | F57: 2.52 | G57: 0.3071 | H57: 4.21% | I57: 1.24% | J57: 26.58 | K57: 1.129 | L57: 0.6322 | M57: 0.5602 | P57: 5.728 | Q57: 87.58 | S57: 1.129
E58: 17.039 | F58: 2.63 | G58: 0.3071 | H58: 4.40% | I58: 1.24% | J58: 26.51 | K58: 1.131 | L58: 0.6427 | M58: 0.5680 | P58: 5.717 | Q58: 87.48 | S58: 1.131
E59: 17.437 | F59: 2.73 | G59: 0.3071 | H59: 4.57% | I59: 1.24% | J59: 26.45 | K59: 1.134 | L59: 0.6591 | M59: 0.5812 | P59: 5.707 | Q59: 87.38 | S59: 1.134
E60: 17.855 | F60: 2.83 | G60: 0.3079 | H60: 4.73% | I60: 1.24% | J60: 26.39 | K60: 1.137 | L60: 0.6765 | M60: 0.5952 | P60: 5.697 | Q60: 87.29 | S60: 1.137
E61: 18.120 | F61: 2.93 | G61: 0.3079 | H61: 4.90% | I61: 1.24% | J61: 26.33 | K61: 1.139 | L61: 0.6881 | M61: 0.6040 | P61: 5.687 | Q61: 87.19 | S61: 1.139
E62: 18.365 | F62: 3.02 | G62: 0.3079 | H62: 5.05% | I62: 1.24% | J62: 26.28 | K62: 1.142 | L62: 0.6988 | M62: 0.6122 | P62: 5.678 | Q62: 87.11 | S62: 1.142
E63: 18.661 | F63: 3.12 | G63: 0.3079 | H63: 5.22% | I63: 1.24% | J63: 26.22 | K63: 1.144 | L63: 0.7117 | M63: 0.6220 | P63: 5.668 | Q63: 87.01 | S63: 1.144
E64: 18.906 | F64: 3.22 | G64: 0.3079 | H64: 5.38% | I64: 1.24% | J64: 26.16 | K64: 1.147 | L64: 0.7226 | M64: 0.6302 | P64: 5.658 | Q64: 86.91 | S64: 1.147
E65: 19.262 | F65: 3.32 | G65: 0.3079 | H65: 5.55% | I65: 1.24% | J65: 26.10 | K65: 1.149 | L65: 0.7380 | M65: 0.6421 | P65: 5.648 | Q65: 86.82 | S65: 1.149
E66: 19.609 | F66: 3.41 | G66: 0.3079 | H66: 5.70% | I66: 1.24% | J66: 26.05 | K66: 1.152 | L66: 0.7528 | M66: 0.6536 | P66: 5.639 | Q66: 86.73 | S66: 1.152
E67: 19.732 | F67: 3.51 | G67: 0.3079 | H67: 5.87% | I67: 1.24% | J67: 25.99 | K67: 1.154 | L67: 0.7592 | M67: 0.6577 | P67: 5.629 | Q67: 86.64 | S67: 1.154
E68: 20.099 | F68: 3.60 | G68: 0.3079 | H68: 6.02% | I68: 1.24% | J68: 25.93 | K68: 1.157 | L68: 0.7750 | M68: 0.6700 | P68: 5.62 | Q68: 86.55 | S68: 1.157
E69: 20.374 | F69: 3.70 | G69: 0.3079 | H69: 6.19% | I69: 1.24% | J69: 25.87 | K69: 1.159 | L69: 0.7874 | M69: 0.6791 | P69: 5.61 | Q69: 86.45 | S69: 1.159
E70: 20.527 | F70: 3.80 | G70: 0.3079 | H70: 6.35% | I70: 1.24% | J70: 25.82 | K70: 1.162 | L70: 0.7951 | M70: 0.6842 | P70: 5.6 | Q70: 86.36 | S70: 1.162
E71: 20.792 | F71: 3.90 | G71: 0.3079 | H71: 6.52% | I71: 1.24% | J71: 25.76 | K71: 1.165 | L71: 0.8073 | M71: 0.6931 | P71: 5.59 | Q71: 86.26 | S71: 1.165
E72: 21.129 | F72: 4.00 | G72: 0.3079 | H72: 6.69% | I72: 1.24% | J72: 25.70 | K72: 1.167 | L72: 0.8223 | M72: 0.7043 | P72: 5.58 | Q72: 86.16 | S72: 1.167
E73: 21.292 | F73: 4.10 | G73: 0.3079 | H73: 6.86% | I73: 1.24% | J73: 25.64 | K73: 1.170 | L73: 0.8305 | M73: 0.7097 | P73: 5.57 | Q73: 86.07 | S73: 1.170
E74: 21.251 | F74: 4.20 | G74: 0.3079 | H74: 7.02% | I74: 1.24% | J74: 25.58 | K74: 1.173 | L74: 0.8309 | M74: 0.7084 | P74: 5.56 | Q74: 85.97 | S74: 1.173
E75: 21.730 | F75: 4.30 | G75: 0.3079 | H75: 7.19% | I75: 1.24% | J75: 25.52 | K75: 1.176 | L75: 0.8516 | M75: 0.7243 | P75: 5.55 | Q75: 85.88 | S75: 1.176
E76: 21.812 | F76: 4.40 | G76: 0.3079 | H76: 7.36% | I76: 1.24% | J76: 25.46 | K76: 1.178 | L76: 0.8568 | M76: 0.7271 | P76: 5.54 | Q76: 85.78 | S76: 1.178
E77: 22.301 | F77: 4.50 | G77: 0.3079 | H77: 7.53% | I77: 1.24% | J77: 25.40 | K77: 1.181 | L77: 0.8781 | M77: 0.7434 | P77: 5.53 | Q77: 85.68 | S77: 1.181
E78: 22.556 | F78: 4.60 | G78: 0.3079 | H78: 7.69% | I78: 1.24% | J78: 25.34 | K78: 1.184 | L78: 0.8902 | M78: 0.7519 | P78: 5.52 | Q78: 85.59 | S78: 1.184
E79: 23.046 | F79: 4.70 | G79: 0.3079 | H79: 7.86% | I79: 1.24% | J79: 25.28 | K79: 1.187 | L79: 0.9117 | M79: 0.7682 | P79: 5.51 | Q79: 85.49 | S79: 1.187
E80: 23.250 | F80: 4.80 | G80: 0.3079 | H80: 8.03% | I80: 1.24% | J80: 25.22 | K80: 1.190 | L80: 0.9219 | M80: 0.7750 | P80: 5.5 | Q80: 85.40 | S80: 1.190
E81: 23.158 | F81: 4.90 | G81: 0.3079 | H81: 8.19% | I81: 1.24% | J81: 25.16 | K81: 1.192 | L81: 0.9204 | M81: 0.7719 | P81: 5.49 | Q81: 85.30 | S81: 1.192
E82: 23.698 | F82: 4.99 | G82: 0.3079 | H82: 8.34% | I82: 1.24% | J82: 25.11 | K82: 1.195 | L82: 0.9439 | M82: 0.7899 | P82: 5.481 | Q82: 85.21 | S82: 1.195
E83: 23.872 | F83: 5.08 | G83: 0.3079 | H83: 8.49% | I83: 1.24% | J83: 25.05 | K83: 1.198 | L83: 0.9529 | M83: 0.7957 | P83: 5.472 | Q83: 85.13 | S83: 1.198
E84: 23.800 | F84: 5.19 | G84: 0.3079 | H84: 8.68% | I84: 1.24% | J84: 24.99 | K84: 1.201 | L84: 0.9525 | M84: 0.7933 | P84: 5.461 | Q84: 85.02 | S84: 1.201
E85: 23.831 | F85: 5.28 | G85: 0.3079 | H85: 8.83% | I85: 1.24% | J85: 24.93 | K85: 1.203 | L85: 0.9558 | M85: 0.7944 | P85: 5.452 | Q85: 84.93 | S85: 1.203
E86: 24.035 | F86: 5.38 | G86: 0.3079 | H86: 9.00% | I86: 1.24% | J86: 24.87 | K86: 1.206 | L86: 0.9663 | M86: 0.8012 | P86: 5.442 | Q86: 84.84 | S86: 1.206
E87: 24.351 | F87: 5.48 | G87: 0.3079 | H87: 9.16% | I87: 1.24% | J87: 24.81 | K87: 1.209 | L87: 0.9813 | M87: 0.8117 | P87: 5.432 | Q87: 84.74 | S87: 1.209
E88: 24.300 | F88: 5.58 | G88: 0.3079 | H88: 9.33% | I88: 1.24% | J88: 24.75 | K88: 1.212 | L88: 0.9816 | M88: 0.8100 | P88: 5.422 | Q88: 84.65 | S88: 1.212
E89: 24.647 | F89: 5.68 | G89: 0.3079 | H89: 9.50% | I89: 1.24% | J89: 24.69 | K89: 1.215 | L89: 0.9981 | M89: 0.8216 | P89: 5.412 | Q89: 84.55 | S89: 1.215
E90: 24.963 | F90: 5.78 | G90: 0.3079 | H90: 9.67% | I90: 1.24% | J90: 24.64 | K90: 1.218 | L90: 1.0133 | M90: 0.8321 | P90: 5.402 | Q90: 84.45 | S90: 1.218
E91: 25.034 | F91: 5.88 | G91: 0.3079 | H91: 9.83% | I91: 1.24% | J91: 24.58 | K91: 1.221 | L91: 1.0187 | M91: 0.8345 | P91: 5.392 | Q91: 84.36 | S91: 1.221
E92: 25.167 | F92: 5.98 | G92: 0.3079 | H92: 10.00% | I92: 1.24% | J92: 24.52 | K92: 1.224 | L92: 1.0265 | M92: 0.8389 | P92: 5.382 | Q92: 84.26 | S92: 1.224
E93: 25.269 | F93: 6.08 | G93: 0.3079 | H93: 10.17% | I93: 1.24% | J93: 24.46 | K93: 1.227 | L93: 1.0332 | M93: 0.8423 | P93: 5.372 | Q93: 84.16 | S93: 1.227
E94: 25.371 | F94: 6.18 | G94: 0.3079 | H94: 10.33% | I94: 1.24% | J94: 24.40 | K94: 1.230 | L94: 1.0399 | M94: 0.8457 | P94: 5.362 | Q94: 84.07 | S94: 1.230
E95: 25.411 | F95: 6.28 | G95: 0.3079 | H95: 10.50% | I95: 1.24% | J95: 24.34 | K95: 1.233 | L95: 1.0441 | M95: 0.8470 | P95: 5.352 | Q95: 83.97 | S95: 1.233
E96: 25.717 | F96: 6.38 | G96: 0.3079 | H96: 10.67% | I96: 1.24% | J96: 24.28 | K96: 1.236 | L96: 1.0593 | M96: 0.8572 | P96: 5.342 | Q96: 83.88 | S96: 1.236
E97: 25.891 | F97: 6.48 | G97: 0.3079 | H97: 10.84% | I97: 1.24% | J97: 24.22 | K97: 1.239 | L97: 1.0690 | M97: 0.8630 | P97: 5.332 | Q97: 83.78 | S97: 1.239
E98: 26.105 | F98: 6.58 | G98: 0.3079 | H98: 11.00% | I98: 1.24% | J98: 24.16 | K98: 1.242 | L98: 1.0805 | M98: 0.8702 | P98: 5.322 | Q98: 83.68 | S98: 1.242
E99: 26.288 | F99: 6.68 | G99: 0.3079 | H99: 11.17% | I99: 1.24% | J99: 24.10 | K99: 1.245 | L99: 1.0908 | M99: 0.8763 | P99: 5.312 | Q99: 83.59 | S99: 1.245
E100: 26.655 | F100: 6.78 | G100: 0.3079 | H100: 11.34% | I100: 1.24% | J100: 24.04 | K100: 1.248 | L100: 1.1088 | M100: 0.8885 | P100: 5.302 | Q100: 83.49 | S100: 1.248
E101: 26.635 | F101: 6.88 | G101: 0.3079 | H101: 11.51% | I101: 1.24% | J101: 23.98 | K101: 1.251 | L101: 1.1107 | M101: 0.8878 | P101: 5.292 | Q101: 83.39 | S101: 1.251
E102: 27.002 | F102: 6.97 | G102: 0.3079 | H102: =+((F102/10)/$G$13) -> 11.66% | I102: =((+G102/10)/$G$14) -> 1.24% | J102: =+($G$13^2/2)*(Q102*PI()/180-((F102/10)/$G$13)*SIN(Q102*PI()/180)) -> 23.93 | K102: =+$H$26/J102 -> 1.254 | L102: =+E102/J102 -> 1.1285 | M102: =+L102/K102 -> 0.9001 | P102: =+$G$13-(F102/10) -> 5.283 | Q102: =+DEGREES(ACOS((F102/10)/$G$13)) -> 83.31 | S102: =+K102 -> 1.254
E103: 27.206 | F103: 7.07 | G103: 0.3079 | H103: 11.82% | I103: 1.24% | J103: 23.87 | K103: 1.257 | L103: 1.1398 | M103: 0.9069 | P103: 5.273 | Q103: 83.21 | S103: 1.257
E104: 27.043 | F104: 7.17 | G104: 0.3079 | H104: 11.99% | I104: 1.24% | J104: 23.81 | K104: 1.260 | L104: 1.1358 | M104: 0.9014 | P104: 5.263 | Q104: 83.11 | S104: 1.260
E105: 27.104 | F105: 7.27 | G105: 0.3079 | H105: 12.16% | I105: 1.24% | J105: 23.75 | K105: 1.263 | L105: 1.1413 | M105: 0.9035 | P105: 5.253 | Q105: 83.02 | S105: 1.263
E106: 27.033 | F106: 7.37 | G106: 0.3079 | H106: 12.32% | I106: 1.24% | J106: 23.69 | K106: 1.266 | L106: 1.1411 | M106: 0.9011 | P106: 5.243 | Q106: 82.92 | S106: 1.266
E107: 27.441 | F107: 7.46 | G107: 0.3079 | H107: 12.47% | I107: 1.24% | J107: 23.64 | K107: 1.269 | L107: 1.1609 | M107: 0.9147 | P107: 5.234 | Q107: 82.83 | S107: 1.269
E108: 27.685 | F108: 7.56 | G108: 0.3079 | H108: 12.64% | I108: 1.24% | J108: 23.58 | K108: 1.272 | L108: 1.1742 | M108: 0.9228 | P108: 5.224 | Q108: 82.74 | S108: 1.272
E109: 27.848 | F109: 7.66 | G109: 0.3079 | H109: 12.81% | I109: 1.24% | J109: 23.52 | K109: 1.276 | L109: 1.1841 | M109: 0.9283 | P109: 5.214 | Q109: 82.64 | S109: 1.276
E110: 27.961 | F110: 7.76 | G110: 0.3079 | H110: 12.98% | I110: 1.24% | J110: 23.46 | K110: 1.279 | L110: 1.1919 | M110: 0.9320 | P110: 5.204 | Q110: 82.54 | S110: 1.279
E111: 28.501 | F111: 7.85 | G111: 0.3079 | H111: 13.13% | I111: 1.24% | J111: 23.41 | K111: 1.282 | L111: 1.2177 | M111: 0.9500 | P111: 5.195 | Q111: 82.46 | S111: 1.282
E112: 28.695 | F112: 7.95 | G112: 0.3079 | H112: 13.29% | I112: 1.24% | J112: 23.35 | K112: 1.285 | L112: 1.2291 | M112: 0.9565 | P112: 5.185 | Q112: 82.36 | S112: 1.285
E113: 29.123 | F113: 8.05 | G113: 0.3079 | H113: 13.46% | I113: 1.24% | J113: 23.29 | K113: 1.288 | L113: 1.2506 | M113: 0.9708 | P113: 5.175 | Q113: 82.26 | S113: 1.288
E114: 28.838 | F114: 8.15 | G114: 0.3079 | H114: 13.63% | I114: 1.24% | J114: 23.23 | K114: 1.292 | L114: 1.2415 | M114: 0.9613 | P114: 5.165 | Q114: 82.17 | S114: 1.292
E115: 29.194 | F115: 8.26 | G115: 0.3079 | H115: 13.81% | I115: 1.24% | J115: 23.16 | K115: 1.295 | L115: 1.2604 | M115: 0.9731 | P115: 5.154 | Q115: 82.06 | S115: 1.295
E116: 29.500 | F116: 8.35 | G116: 0.3079 | H116: 13.96% | I116: 1.24% | J116: 23.11 | K116: 1.298 | L116: 1.2766 | M116: 0.9833 | P116: 5.145 | Q116: 81.97 | S116: 1.298
E117: 29.429 | F117: 8.45 | G117: 0.3079 | H117: 14.13% | I117: 1.24% | J117: 23.05 | K117: 1.302 | L117: 1.2768 | M117: 0.9810 | P117: 5.135 | Q117: 81.88 | S117: 1.302
E118: 29.551 | F118: 8.56 | G118: 0.3079 | H118: 14.31% | I118: 1.24% | J118: 22.98 | K118: 1.305 | L118: 1.2857 | M118: 0.9850 | P118: 5.124 | Q118: 81.77 | S118: 1.305
E119: 29.470 | F119: 8.66 | G119: 0.3079 | H119: 14.48% | I119: 1.24% | J119: 22.93 | K119: 1.309 | L119: 1.2855 | M119: 0.9823 | P119: 5.114 | Q119: 81.67 | S119: 1.309
E120: 29.674 | F120: 8.76 | G120: 0.3079 | H120: 14.65% | I120: 1.24% | J120: 22.87 | K120: 1.312 | L120: 1.2977 | M120: 0.9891 | P120: 5.104 | Q120: 81.58 | S120: 1.312
E121: 29.827 | F121: 8.86 | G121: 0.3079 | H121: 14.82% | I121: 1.24% | J121: 22.81 | K121: 1.315 | L121: 1.3078 | M121: 0.9942 | P121: 5.094 | Q121: 81.48 | S121: 1.315
E122: 29.623 | F122: 8.95 | G122: 0.3079 | H122: 14.97% | I122: 1.24% | J122: 22.75 | K122: 1.318 | L122: 1.3019 | M122: 0.9874 | P122: 5.085 | Q122: 81.39 | S122: 1.318
E123: 29.368 | F123: 9.05 | G123: 0.3066 | H123: 15.13% | I123: 1.24% | J123: 22.69 | K123: 1.322 | L123: 1.2940 | M123: 0.9789 | P123: 5.075 | Q123: 81.30 | S123: 1.322
E124: 29.347 | F124: 9.15 | G124: 0.3066 | H124: 15.30% | I124: 1.24% | J124: 22.64 | K124: 1.325 | L124: 1.2965 | M124: 0.9782 | P124: 5.065 | Q124: 81.20 | S124: 1.325
E125: 29.755 | F125: 9.25 | G125: 0.3066 | H125: 15.47% | I125: 1.24% | J125: 22.58 | K125: 1.329 | L125: 1.3180 | M125: 0.9918 | P125: 5.055 | Q125: 81.10 | S125: 1.329
E126: 30.357 | F126: 9.34 | G126: 0.3066 | H126: 15.62% | I126: 1.24% | J126: 22.52 | K126: 1.332 | L126: 1.3478 | M126: 1.0119 | P126: 5.046 | Q126: 81.01 | S126: 1.332
J138: Revisado y Aprobado:
E139: Laboratorista | K139: I.C. GERMAN DARÍO TAPIA MUÑOZ
K140: M.P. 25202-60095 CND (Secc. C/marca)
G150: =MAX(G31:G76) -> 0.308
G151: =MAX(G32:G76) -> 0.308
E152: =MAX(E31:E76) -> 21.8117 | G152: =MAX(G31:G76) -> 0.308 | J152: =MIN(J31:J76) -> 25.46 | K152: =+S95 -> 1.233 | L152: =VLOOKUP(E152,E31:L72,8,0) -> 
K153: =+S96 -> 1.236 | L153: =MIN(L61:L72) -> 0.688
L154: OJO MODIFICAR CON EL MINIMO DESPUES DEL MAXIMO
E192: Proyecto: | I192: Cliente | M192: Muestra
E193: Sondeo: | I193: Profundidad: | K193: A | M193: Fecha
E194: Galleta : | F194: A
E195: Tipo Muestra:

Sheet CD C wn
G3: ENSAYO DE CORTE DIRECTO
U5: galleta A
D6: Proyecto: | E6: =+'CD A wn'!E6 -> 0.00 | H6: Cliente | I6: =+'CD A wn'!I6 -> 0 | L6: Muestra | M6: =+'CD A wn'!M6 -> Muestra 6
D7: Sondeo: | E7: =+'CD A wn'!E7 -> Sondeo 3 | H7: Profundidad: | I7: =+'CD A wn'!I7 -> 0.00 | J7: A | K7: =+'CD A wn'!K7 -> 0.00 | L7: Fecha | M7: =+'CD A wn'!M7:N7 -> 00:00:00
B8: Galleta 1 | D8: Galleta : | E8: C
D9: Tipo Muestra: | E9: =+'CD A wn'!E9 -> 0.00
E11: Descripcion de la muestra
E13: Diámetro (cm) | G13: 5.98 | K13: Humedad natural | L13: Inicial | M13: Final
B14: DIAMETROS | E14: Altura (cm) | G14: 2.48 | K14: Recipiente
A15: 5 | B15: 5 | C15: =+(A15+B15)/2 -> 5 | E15: Peso del anillo + muestra (g) | K15: Peso recipiente (g)
A16: 5 | B16: 5 | C16: 5 | E16: Peso del anillo (g) | K16: Peso rec + m. humeda (g)
A17: 5 | B17: 5 | C17: 5 | E17: Peso de la muestra (g) | G17: =+G15-G16 -> 0.00 | K17: Peso rec + m. seca (g)
B18: ALTURAS | E18: Peso seco (g) | G18: =+G22*G20 -> 0.00 | K18: Wn (%) | L18: 24.00% | M18: 28.00%
A19: 2.18 | B19: 2.18 | C19: 2.18 | E19: Area (cm2) | G19: =+(PI()*G13^2)/4 -> 28.09
A20: 2.18 | B20: 2.18 | C20: 2.18 | E20: Volumen (cm3) | G20: =+G14*G19 -> 69.65
A21: 2.18 | B21: 2.18 | C21: 2.18 | E21: Peso unitario total (g/cm3) | G21: =+G17/G20 -> 0.00
E22: Peso unitario seco (g/cm3 | G22: =+G21/(1+(L18)) -> 0.00
B23: 52.42 | E23: Altura final (despues del ensayo de corte) | G23: =+G14-(G93/10) -> 2.46
B25: 322.87 | E25: Pesa de carga (kg) | I25: Peso piedra porosa (kg) | L25: =+M25/1000 -> 0.0000
B26: 289.4 | E26: Carga normal (kg) | H26: 60 | I26: Velocidad de corte (mm/min)
E27: Esfuerzo normal inicial (kg/cm2) | H27: =+H26/G19 -> 2.14 | I27: Peso del bloque de carga (kg) | L27: =+M27/1000 -> 0.0000
E28: Carga (Kg) | F28: Lectura del deformímetro horizontal (mm) | G28: Lectura del deformímetro vertical(mm) | H28: Deformación horizontal (%) | I28: Deformación vertical (%) | J28: Area corregida (cm2) | K28: Esfuerzo normal (Kg/cm2) | L28: Esfuerzo cortante (Kg/cm2) | M28: Relación t/s | Q28: Angulo E para area corregida
P30: DFINAL
E31: 0.01 | F31: 0.00 | G31: 0.0000 | H31: =+((F31/10)/$G$13) -> 0.00% | I31: =((+G31/10)/$G$14) -> 0.00% | J31: =+($G$13^2/2)*(Q31*PI()/180-((F31/10)/$G$13)*SIN(Q31*PI()/180)) -> 28.09 | K31: =+$H$26/J31 -> 2.136 | L31: =+E31/J31 -> 0.0004 | M31: =+L31/K31 -> 0.0002 | P31: =+$G$13-(F31/10) -> 5.98 | Q31: =+DEGREES(ACOS((F31/10)/$G$13)) -> 90.00 | R31: 3132470941.000 | S31: =+K31 -> 2.136
E32: 1.97 | F32: 0.07 | G32: 0.1986 | H32: 0.12% | I32: =((+G32/10)/$G$14) -> 0.80% | J32: 28.04 | K32: 2.139 | L32: =+E32/J32 -> 0.0702 | M32: =+L32/K32 -> 0.0328 | P32: 5.973 | Q32: 89.93 | S32: 2.139
E33: 2.27 | F33: 0.16 | G33: 0.1986 | H33: 0.27% | I33: 0.80% | J33: 27.99 | K33: 2.144 | L33: =+E33/J33 -> 0.0812 | M33: 0.0379 | P33: 5.964 | Q33: 89.85 | S33: 2.144
E34: 1.47 | F34: 0.26 | G34: 0.1986 | H34: 0.43% | I34: 0.80% | J34: 27.93 | K34: 2.148 | L34: 0.0526 | M34: 0.0245 | P34: 5.954 | Q34: 89.75 | R34: 3108712702.000 | S34: 2.148
E35: 0.90 | F35: 0.37 | G35: 0.1986 | H35: 0.62% | I35: 0.80% | J35: 27.86 | K35: 2.153 | L35: 0.0322 | M35: 0.0150 | P35: 5.943 | Q35: 89.65 | S35: 2.153
E36: 1.73 | F36: 0.47 | G36: 0.1986 | H36: 0.79% | I36: 0.80% | J36: 27.81 | K36: 2.158 | L36: 0.0623 | M36: 0.0289 | P36: 5.933 | Q36: 89.55 | S36: 2.158
E37: 1.79 | F37: 0.56 | G37: 0.1986 | H37: 0.94% | I37: 0.80% | J37: 27.75 | K37: 2.162 | L37: 0.0647 | M37: 0.0299 | P37: 5.924 | Q37: 89.46 | S37: 2.162
E38: 2.26 | F38: 0.66 | G38: 0.1986 | H38: 1.10% | I38: 0.80% | J38: 27.69 | K38: 2.167 | L38: 0.0817 | M38: 0.0377 | P38: 5.914 | Q38: 89.37 | S38: 2.167
E39: 12.20 | F39: 0.75 | G39: 0.1986 | H39: 1.25% | I39: 0.80% | J39: 27.64 | K39: 2.171 | L39: 0.4413 | M39: 0.2033 | P39: 5.905 | Q39: 89.28 | S39: 2.171
E40: 14.24 | F40: 0.85 | G40: 0.2000 | H40: 1.42% | I40: 0.81% | J40: 27.58 | K40: 2.176 | L40: 0.5162 | M40: 0.2373 | P40: 5.895 | Q40: 89.19 | S40: 2.176
E41: 15.02 | F41: 0.94 | G41: 0.2013 | H41: 1.57% | I41: 0.81% | J41: 27.52 | K41: 2.180 | L41: 0.5457 | M41: 0.2503 | P41: 5.886 | Q41: 89.10 | S41: 2.180
E42: 15.81 | F42: 1.04 | G42: 0.2027 | H42: 1.74% | I42: 0.82% | J42: 27.46 | K42: 2.185 | L42: 0.5755 | M42: 0.2634 | P42: 5.876 | Q42: 89.00 | S42: 2.185
E43: 17.00 | F43: 1.14 | G43: 0.2034 | H43: 1.91% | I43: 0.82% | J43: 27.40 | K43: 2.189 | L43: 0.6203 | M43: 0.2833 | P43: 5.866 | Q43: 88.91 | S43: 2.189
E44: 20.31 | F44: 1.23 | G44: 0.2049 | H44: 2.06% | I44: 0.83% | J44: 27.35 | K44: 2.194 | L44: 0.7427 | M44: 0.3385 | P44: 5.857 | Q44: 88.82 | S44: 2.194
E45: 22.23 | F45: 1.33 | G45: 0.2062 | H45: 2.22% | I45: 0.83% | J45: 27.29 | K45: 2.199 | L45: 0.8146 | M45: 0.3705 | P45: 5.847 | Q45: 88.73 | S45: 2.199
E46: 23.62 | F46: 1.42 | G46: 0.2072 | H46: 2.37% | I46: 0.84% | J46: 27.24 | K46: 2.203 | L46: 0.8671 | M46: 0.3936 | P46: 5.838 | Q46: 88.64 | S46: 2.203
E47: 24.44 | F47: 1.51 | G47: 0.2080 | H47: 2.53% | I47: 0.84% | J47: 27.18 | K47: 2.207 | L47: 0.8992 | M47: 0.4074 | P47: 5.829 | Q47: 88.55 | S47: 2.207
E48: 25.02 | F48: 1.61 | G48: 0.2093 | H48: 2.69% | I48: 0.84% | J48: 27.12 | K48: 2.212 | L48: 0.9226 | M48: 0.4171 | P48: 5.819 | Q48: 88.46 | S48: 2.212
E49: 25.90 | F49: 1.71 | G49: 0.2099 | H49: 2.86% | I49: 0.85% | J49: 27.06 | K49: 2.217 | L49: 0.9570 | M49: 0.4317 | P49: 5.809 | Q49: 88.36 | S49: 2.217
E50: 26.74 | F50: 1.81 | G50: 0.2115 | H50: 3.03% | I50: 0.85% | J50: 27.00 | K50: 2.222 | L50: 0.9901 | M50: 0.4456 | P50: 5.799 | Q50: 88.27 | S50: 2.222
E51: 27.53 | F51: 1.91 | G51: 0.2124 | H51: 3.19% | I51: 0.86% | J51: 26.94 | K51: 2.227 | L51: 1.0218 | M51: 0.4589 | P51: 5.789 | Q51: 88.17 | S51: 2.227
E52: 28.64 | F52: 2.01 | G52: 0.2130 | H52: 3.36% | I52: 0.86% | J52: 26.88 | K52: 2.232 | L52: 1.0654 | M52: 0.4774 | P52: 5.779 | Q52: 88.07 | S52: 2.232
E53: 29.88 | F53: 2.11 | G53: 0.2137 | H53: 3.53% | I53: 0.86% | J53: 26.82 | K53: 2.237 | L53: 1.1138 | M53: 0.4980 | P53: 5.769 | Q53: 87.98 | S53: 2.237
E54: 30.94 | F54: 2.21 | G54: 0.2145 | H54: 3.70% | I54: 0.86% | J54: 26.76 | K54: 2.242 | L54: 1.1559 | M54: 0.5156 | P54: 5.759 | Q54: 87.88 | S54: 2.242
E55: 32.08 | F55: 2.31 | G55: 0.2145 | H55: 3.86% | I55: 0.86% | J55: 26.71 | K55: 2.247 | L55: 1.2013 | M55: 0.5347 | P55: 5.749 | Q55: 87.79 | S55: 2.247
E56: 33.08 | F56: 2.41 | G56: 0.2155 | H56: 4.03% | I56: 0.87% | J56: 26.65 | K56: 2.252 | L56: 1.2415 | M56: 0.5513 | P56: 5.739 | Q56: 87.69 | S56: 2.252
E57: 34.06 | F57: 2.51 | G57: 0.2155 | H57: 4.20% | I57: 0.87% | J57: 26.59 | K57: 2.257 | L57: 1.2811 | M57: 0.5676 | P57: 5.729 | Q57: 87.59 | S57: 2.257
E58: 34.97 | F58: 2.61 | G58: 0.2166 | H58: 4.36% | I58: 0.87% | J58: 26.53 | K58: 2.262 | L58: 1.3182 | M58: 0.5828 | P58: 5.719 | Q58: 87.50 | S58: 2.262
E59: 35.99 | F59: 2.71 | G59: 0.2166 | H59: 4.53% | I59: 0.87% | J59: 26.47 | K59: 2.267 | L59: 1.3597 | M59: 0.5998 | P59: 5.709 | Q59: 87.40 | S59: 2.267
E60: 36.93 | F60: 2.81 | G60: 0.2176 | H60: 4.70% | I60: 0.88% | J60: 26.41 | K60: 2.272 | L60: 1.3987 | M60: 0.6156 | P60: 5.699 | Q60: 87.31 | S60: 2.272
E61: 37.82 | F61: 2.90 | G61: 0.2185 | H61: 4.85% | I61: 0.88% | J61: 26.35 | K61: 2.277 | L61: 1.4352 | M61: 0.6304 | P61: 5.69 | Q61: 87.22 | S61: 2.277
E62: 38.78 | F62: 3.00 | G62: 0.2185 | H62: 5.02% | I62: 0.88% | J62: 26.29 | K62: 2.282 | L62: 1.4749 | M62: 0.6463 | P62: 5.68 | Q62: 87.12 | S62: 2.282
E63: 39.77 | F63: 3.10 | G63: 0.2195 | H63: 5.18% | I63: 0.89% | J63: 26.23 | K63: 2.287 | L63: 1.5160 | M63: 0.6628 | P63: 5.67 | Q63: 87.03 | S63: 2.287
E64: 40.39 | F64: 3.20 | G64: 0.2195 | H64: 5.35% | I64: 0.89% | J64: 26.17 | K64: 2.292 | L64: 1.5432 | M64: 0.6732 | P64: 5.66 | Q64: 86.93 | S64: 2.292
P65: 5.98 | Q65: 90.00 | S65: 0.000
P66: 5.98 | Q66: 90.00 | S66: 0.000
P67: 5.98 | Q67: 90.00 | S67: 0.000
P68: 5.98 | Q68: 90.00 | S68: 0.000
P69: 5.98 | Q69: 90.00 | S69: 0.000
P70: 5.98 | Q70: 90.00 | S70: 0.000
P71: 5.98 | Q71: 90.00 | S71: 0.000
P72: 5.98 | Q72: =+DEGREES(ACOS((F72/10)/$G$13)) -> 90.00 | S72: 0.000
Q73: 90.00
Q74: 90.00
Q75: 90.00
Q76: 90.00
P77: =+$G$13-(F77/10) -> 5.98 | Q77: 90.00 | S77: =+K77 -> 0.000
P78: =+$G$13-(F78/10) -> 5.98 | Q78: 90.00 | S78: 0.000
P79: =+$G$13-(F79/10) -> 5.98 | Q79: 90.00 | S79: 0.000
P80: =+$G$13-(F80/10) -> 5.98 | S80: 0.000
J81: Revisado y Aprobado:
E82: Laboratorista | K82: I.C. GERMAN DARÍO TAPIA MUÑOZ
K83: M.P. 25202-60095 CND (Secc. C/marca)
G93: =MAX(G31:G76) -> 0.220
G94: =MAX(G32:G76) -> 0.220
E95: =MAX(E31:E76) -> 40.3910 | G95: =MAX(G31:G76) -> 0.220 | J95: =MIN(J31:J76) -> 26.17 | K95: =+S95 -> 2.292 | L95: =VLOOKUP(E95,E31:L76,8,0) -> 1.543 | P95: =MIN(P31:P80) -> 5.66 | S95: =VLOOKUP(L95,L31:S80,8,0) -> 2.292
K96: =+S96 -> 2.242 | L96: =MIN(L54:L76) -> 1.156 | S96: =VLOOKUP(L96,L31:S75,8,0) -> 2.242
L97: OJO MODIFICAR CON EL MINIMO DESPUES DEL MAXIMO
E135: Proyecto: | I135: Cliente | M135: Muestra
E136: Sondeo: | I136: Profundidad: | K136: A | M136: Fecha
E137: Galleta : | F137: A
E138: Tipo Muestra:

Sheet Graficos-
G3: ENSAYO DE CORTE DIRECTO
D5: Proyecto | E5: =+'CD C wn'!E6 -> 0.00 | K5: Parámetros de resistencia
E6: =+'CD A wn'!I6 -> 0.00 | H6: Sondeo | I6: =+'CD A wn'!E7 -> Sondeo 3 | L6: Pico | M6: Residual
D7: Cliente | H7: Muestra | I7: =+'CD A wn'!M6 -> Muestra 6 | K7: c(kg/cm2) | M7: =+R38 -> 0.09
H8: Fecha | I8: =+'CD A wn'!M7 -> 00:00:00 | K8: Fi (º) | M8: 41
Q20: tabla de Residual
Q21: =+'CD A wn'!$K$31 -> 0.53 | R21: =+'CD A wn'!$L$31 -> 0.00 | T21: =+'CD B wn'!$K$31 -> 1.07 | U21: =+'CD B wn'!$L$31 -> 0.00 | W21: =+'CD C wn'!$K$31 -> 2.14 | X21: =+'CD C wn'!$L$31 -> 0.00
P22: ensayo 1 | Q22: =+'CD A wn'!$K$225 -> 0.62 | R22: =+'CD A wn'!$L$225 -> 0.28 | S22: ensayo 2 | T22: =+'CD B wn'!$K$153 -> 1.24 | U22: =+'CD B wn'!$L$153 -> 0.69 | V22: ensayo 3 | W22: =+'CD C wn'!$K$96 -> 2.24 | X22: =+'CD C wn'!$L$96 -> 1.16
Q23: Normal | R23: Cortante | T23: Normal | U23: Cortante | W23: Normal | X23: Cortante
Q25: tabla de picos
Q26: =+'CD A wn'!$K$31 -> 0.53 | R26: =+'CD A wn'!$L$31 -> 0.00 | T26: =+'CD B wn'!$K$31 -> 1.07 | U26: =+'CD B wn'!$L$31 -> 0.00 | W26: =+'CD C wn'!$K$31 -> 2.14 | X26: =+'CD C wn'!$L$31 -> 0.00
P27: ensayo 1 | Q27: =+'CD A wn'!$K$224 -> 0.62 | R27: =+'CD A wn'!$L$224 -> 1.44 | S27: ensayo 2 | T27: =+'CD B wn'!$K$152 -> 1.23 | U27: =+'CD B wn'!$L$152 ->  | V27: ensayo 3 | W27: =+'CD C wn'!$K$95 -> 2.29 | X27: =+'CD C wn'!$L$95 -> 1.54
Q28: Normal | R28: Cortante | T28: Normal | U28: Cortante | W28: Normal | X28: Cortante
P32: pendiente | Q32: phi | R32: C Kg/cm2 | S32: Nivel de deformacion | T32: S | U32: T | V32: S | W32: T
O33: TANGENTE | P33: =SLOPE(R46:R48,Q46:Q48) -> 0.6139660185 | Q33: =+DEGREES(ATAN(P33)) -> 31.54851103 | R33: =+Q50 -> 0.2359387
O38: RESIDUAL | P38: =SLOPE(U46:U48,T46:T48) -> 0.873266905 | Q38: =+DEGREES(ATAN(P38)) -> 41.12963668 | R38: =+T50 -> 0.0897963
T44: OJO MODIFICAR CON EL MINIMO DESPUES DEL MAXIMO
Q45: RECTA TANGENTE | T45: RECTA Residual
Q46: 0.70 | R46: 0.50 | T46: 0.00 | U46: 0.10
Q47: 1.30 | R47: 1.30 | T47: 0.45 | U47: 0.47
Q48: =+W27 -> 2.29 | R48: =+X27 -> 1.54 | T48: =+W22 -> 2.24 | U48: 2.05
Q49: 0 | R49: 0
Q50: =INTERCEPT(R46:R48,Q46:Q48) -> 0.2359386849 | T50: =INTERCEPT(U46:U48,T46:T48) -> 0.08979628738
O69: 2.5 | P69: 1.88
O70: =+O69*100 -> 250 | P70: =+P69*O69 -> 4.7
P72: =+P69*O70 -> 470 | Q72: =+P72/1000 -> 0.47
J89: Revisado y Aprobado:
E90: Laboratorista | K90: I.C. GERMAN DARÍO TAPIA MUÑOZ
K91: M.P. 25202-60095 CND (Secc. C/marca)
